{"text_format":"1","workbook":"xlsx","n_sheets":7,"sheets":["sheet1","سلف العاملين بالشركة","Sheet2","Sheet3","Sheet4","Sheet5","Sheet6"],"not_rendered":{"charts":0,"images":0,"macros":1,"external_links":0,"defined_names":1,"comments":1,"pivot_tables":0},"unopened":[],"bounds":{"document_bytes":16777216,"sheet_cells":100000,"rows_first":2000,"rows_last":500,"rows_between":2000,"halvings":0,"cell_chars":16384,"cell_head_chars":4096},"cells_cut":0,"cells_raw":0,"read":"whole","date_system":"1900"}

{"sheet":"sheet1","index":0,"n_rows":431,"n_cols":19,"rows_kept":431,"cut":false,"hidden":false,"merged":[[27,17,68,17]]}
["الانتقال","رصيـــــــــد","التاريــــــــــــــــخ ","رقم الايصال","عهده","مصروفـــــــــــــات","بيـــــــــــــان","التوجيه","كود التحليل","التحليل","الموقع","صرفت / استلمت بواسطة","ملاحظات","الانتقال","رصيـــــــــد","تسوية","سلفه","بيـــــــــــــان السلف","التاريــــــــــــــــخ "]
[null,null,null,null,null,null,"تصفية بتاريخ 25/5/2019",null,null,null,null,null,null,null,null,null,null,"سلف"]
[null,{"$f":"B2+E3-F3","v":300},"2022-01-01",null,300,null,"عهدة",null,null,null,null,null,null,null,500,null,500,"سلفه1"]
[null,1300,"2022-01-11",null,1000,null,"عهدة",null,null,null,null,null,null,null,1500,null,1000,"سلفه2","2021-12-19"]
[null,1800,"2022-01-17",null,500,null,"عهدة",null,null,null,null,null,null,null,1970,null,470,"سلفه3"]
[null,2385,"2022-01-18",null,585,null,"عهدة",null,null,null,null,null,null,null,1985,null,15,"سلفه4"]
[null,2080,"2022-01-09",null,null,305,"ح / 55 رسوم طريق + 250 بنزين الكرولا 5238",5238,"قسم الحركة",null,null,null,null,null,-500,2485,null,"خصمت من مرتب شهر12"]
[null,2010,"من 12/1/2022 الي 17/1/2022",null,null,70,"رسوم طريق","رسوم طريق","قسم الحركة",null,null,null,null,null,0,null,500,"سلفه5","2022-01-01"]
[null,1075,"من 12/1/2022 الي 17/1/2022",null,null,935,"محروقات السيارة الاسكودا البيضاء","محروقات","قسم الحركة",null,null,null,null,null,0,0,0,"سلفه6"]
[null,995,"2022-01-17",null,null,80,"غسيل السيارة الاسكودا البيضاء","غسيل","قسم الحركة",null,null,null,null,null,470,null,470,"سلفه7","2022-02-02"]
[null,1995,"2022-01-31",null,1000,null,"عهده إبراهيم البعار بيد ا0محمد",null,null,null,null,null,null,null,0,470,0,"خصمت من مرتب شهر01 / 2022"]
[null,1465,"2022-01-31",null,null,530,"ح / فاتورة خشب كونتر طبقات 7 م  + 70 نقل للجلاء",null,null,null,null,null,null,null,500,null,500,"سلفه8","2022-02-08"]
[null,995,null,null,null,470,"باقي 1000 عهدة فاتورة الخشب توضع سلفه",null,null,null,null,null,null,null,1000,null,500,"سلفه9","2022-05-19"]
[null,1595,"2022-02-09",null,600,null,"عهدة",null,null,null,null,null,null,null,0,1000,0,"خصمت من مرتب شهر02 / 2022"]
[null,1555,"2022-02-08",null,null,40,"ح / رسوم طريق الاسكودا 5468",null,null,null,null,null,null,null,1000,null,1000,"سلفه10","2022-03-14"]
[null,1055,"2022-02-08",null,null,500,"بنزين الاسكودا 5468",null,null,null,null,null,null,null,1500,null,500,"سلفه11","2022-03-26"]
[null,1005,"2022-02-08",null,null,50,"مصاريف فطار ( بيد إبراهيم البعار )",null,null,null,null,null,null,null,2500,null,1000,"سلفه12","2022-04-09"]
[null,2505,"2022-02-12",null,1500,null,"عهدة",null,null,null,null,null,null,null,2500]
[null,2465,"9/2/2022+12/2/2022",null,null,40,"ح / رسوم طريق الاسكودا 5468",null,null,null,null,null,null,null,2500]
[null,1595,"9/2/2022+12/2/2022",null,null,870,"بنزين الاسكودا 5468",null,null,null,null,null,null,null,2500]
[null,1560,"2022-02-12",null,null,35,"فاتورة صابون لغسيل الاسكودا 5468",null,null,null,null,null,null,null,2500]
[null,1550,"2022-02-12",null,null,10,"باركنج للسيارة الاسكودا 5468",null,null,null,null,null,null,null,2500]
[null,3550,"2022-02-24",null,2000,null,"عهدة",null,null,null,null,null,null,null,2500]
[null,4100,"2022-02-24",null,550,null,"عهدة",null,null,null,null,null,null,null,2500]
[null,3120,"2022-02-24",null,null,980,"ح / مصاريف خاصة(170 فطار ومشاريب + 750 غداء وحاجه ساقعه+60 مشاريب )",null,null,null,null,null,null,null,2500]
[null,3065,"من21/2/2022 الي 24/2/2022",null,null,55,"ح / رسوم طريق",null,null,null,null,null,null,null,2500]
[null,2720,"2022-02-23",null,null,345,"سولار الدبل 5124",null,null,null,null,null,null,null,2500]
[null,2570,"2022-02-23",null,null,150,"ح / مخالفة طريق",null,null,null,null,null,null,null,2500,null,null,"محتاج المساعدة في الاتي :\n1- حل مشكلة التعديل علي بينات البحث حيث انه عند التعديل يقوم الفورم بالتعديل في مكان تاني غير المطلوب\n2- عايز اخلي زر الحذف يحزف محتويات الخلايا بس ما يمسحش الصف كله\n3-عايز لو اخترت optionbutton1 يبحث في نطاق العهد من c2 الي m\nوو اخترت optionbutton1 يبحث في نطاق السلف من p2 الي s \n4-لو في اي تعديل او تظبيط في الفورم يبقي كتر خيركم\nوجزاكم الله خير"]
[null,2540,"2022-02-23",null,null,30,"ح / شطف وضبط كاوتش وفلتر الدبل 5124",null,null,null,null,null,null,null,2500]
[null,3040,"2022-03-03",null,500,null,"عهدة",null,null,null,null,null,null,null,2500]
[null,2604,"2022-03-09",null,null,436,"بنزين95 السياره الكودياك (5468)",null,null,null,null,null,null,null,2500]
[null,3114,"2022-03-10",null,510,null,"عهدة",null,null,null,null,null,null,null,2500]
[null,2894,null,null,null,220,"رسوم طريق","م تشغيل",null,null,"قسم الحركة","المشتري1",null,null,2500]
[null,2394,"2022-02-26",null,null,500,"بنزين95 السياره الكودياك (5468)","المحروقات",null,null,"قسم الحركة","المشتري1",null,null,2500]
[null,1964,"2022-02-28",null,null,430,"بنزين92 السياره الكودياك (5468)","المحروقات",null,null,"قسم الحركة","المشتري1",null,null,2500]
[null,1614,"2022-03-03",null,null,350,"بنزين92 السياره الكودياك (5468)","المحروقات",null,null,"قسم الحركة","المشتري1",null,null,2500]
[null,1224,"2022-03-08",null,null,390,"بنزين95 السياره الكودياك (5468)","المحروقات",null,null,"قسم الحركة","المشتري1",null,null,2500]
[null,924,"2022-03-08",null,null,300,"بنزين95 السياره الكودياك (5468)","المحروقات",null,null,"قسم الحركة","المشتري1",null,null,2500]
[null,489,"2022-03-09",null,null,435,"بنزين95 السياره الكودياك (5468)","المحروقات",null,null,"قسم الحركة","المشتري1",null,null,2500]
[null,29,"2022-03-12",null,null,460,"بنزين95 السياره الكودياك (5468)","المحروقات",null,null,"قسم الحركة","المشتري1",null,null,2500]
[null,-241,"2022-03-13",null,null,270,"بنزين95 السياره الكودياك (5468)","المحروقات",null,null,"قسم الحركة","المشتري1",null,null,2500]
[null,-246,"2022-03-05",null,null,5,"رسوم دخول المركز الطبي","م تشغيل",null,null,"قسم الحركة","المشتري1",null,null,2500]
[null,-261,"2022-03-08",null,null,15,"علبه مناديل فاين السياره الكودياك(5468)","م تشغيل",null,null,"قسم الحركة","المشتري1",null,null,2500]
[null,-301,"2022-03-10",null,null,40,"غسيل + صيانه كاوتش السياره الكودياك(5468)","صيانة السيارات",null,null,"قسم الحركة","المشتري1",null,null,2500]
[null,-331,"-",null,null,30,"غسيل سياره الضيف(بدون فاتوره)","م عموميه",null,null,"قسم الحركة","المشتري1",null,null,2500]
[null,-406,"-",null,null,75,"مصاريف خاصه م/عماد (فطار + مياه) بدون فاتوره","م عموميه",null,null,"قسم الحركة","المشتري1",null,null,2500]
[null,-446,"-",null,null,40,"معجون أسنان م/عماد(بدون فاتوره)","م عموميه",null,null,"قسم الحركة","المشتري1",null,null,2500]
[null,-456,"-",null,null,10,"علبه ينسون للمكتب(بدون فاتوره)","م عموميه",null,null,"قسم الحركة","المشتري1",null,null,2500]
[null,-471,"-",null,null,15,"ح/عامل تحميل كراتين الحلوق القاهره(بدون فاتوره)","م تشغيل",null,null,"قسم الحركة","المشتري1",null,null,2500]
[null,-491,"-",null,null,20,"غسيل السياره الكودياك(5468)","م تشغيل",null,null,"قسم الحركة","المشتري1",null,null,2500]
[null,299,"2022-03-14",null,790,null,"عهدة",null,null,null,null,"المشتري1",null,null,2500]
[null,229,"16/3/2022+19/3/2022",null,null,70,"رسوم طريق","م تشغيل",null,null,"قسم الحركة","المشتري1",null,null,2500]
[null,-706,"16/3/2022+19/3/2022",null,null,935,"ح / عدد 2 فاتورة بنزين الاسكودا5468","المحروقات",null,null,"قسم الحركة","المشتري1",null,null,2500]
[null,-716,"2022-03-20",null,null,10,"ح / رسوم طريق","م تشغيل",null,null,"قسم الحركة","المشتري1",null,null,2500]
[null,-1181,"2022-03-20",null,null,465,"ح / فاتورة بنزين 92 الاسكودا","المحروقات",null,null,"قسم الحركة","المشتري1",null,null,2500]
[null,314,"2022-03-21",null,1495,null,"عهدة",null,null,null,null,"المشتري1",null,null,2500]
[null,294,"2022-03-22",null,null,20,"عدد 3 كارته رسوم طريق (القاهره)","م تشغيل",null,null,"قسم الحركة","المشتري1",null,null,2500]
[null,-106,"2022-03-22",null,null,400,"فاتوره بنزين 95 السياره الكودياك (5468)","المحروقات",null,null,"قسم الحركة","المشتري1",null,null,2500]
[null,-111,"2022-03-22",null,null,5,"ايصال دخول مبني الزراعات بالقاهره","م تشغيل",null,null,"قسم الحركة","المشتري1",null,null,2500]
[null,315,"2022-03-24",null,426,null,"عهدة",null,null,null,null,null,null,null,2500]
[null,795,"30/03/2022",null,480,null,"عهدة",null,null,null,null,null,null,null,2500]
[null,1495,"2022-04-05",null,700,null,"عهدة",null,null,null,null,null,null,null,2500]
[null,2060,"2022-07-04",null,565,null,"عهدة",null,null,null,null,null,null,null,2500]
[null,2620,"2022-07-04",null,560,null,"عهدة",null,null,null,null,null,null,null,2500]
[null,2620,null,null,null,null,null,null,null,null,null,null,null,null,2500]
[null,2620,null,null,null,null,null,null,null,null,null,null,null,null,2500]
[null,{"$f":"B66+E67-F67","v":2620},null,null,null,null,null,null,null,null,null,null,null,null,2500]
[null,2620,null,null,null,null,null,null,null,null,null,null,null,null,2500]
[null,2620,null,null,null,null,null,null,null,null,null,null,null,null,2500]
[null,2620,null,null,null,null,null,null,null,null,null,null,null,null,2500]
[null,2620,null,null,null,null,null,null,null,null,null,null,null,null,2500]
[null,2620,null,null,null,null,null,null,null,null,null,null,null,null,2500]
[null,2620,null,null,null,null,null,null,null,null,null,null,null,null,2500]
[null,2620,null,null,null,null,null,null,null,null,null,null,null,null,2500]
[null,2620,null,null,null,null,null,null,null,null,null,null,null,null,2500]
[null,2620,null,null,null,null,null,null,null,null,null,null,null,null,2500]
[null,2620,null,null,null,null,null,null,null,null,null,null,null,null,2500]
[null,2620,null,null,null,null,null,null,null,null,null,null,null,null,2500]
[null,2620,null,null,null,null,null,null,null,null,null,null,null,null,2500]
[null,2620,null,null,null,null,null,null,null,null,null,null,null,null,2500]
[null,2620,null,null,null,null,null,null,null,null,null,null,null,null,2500]
[null,2620,null,null,null,null,null,null,null,null,null,null,null,null,2500]
[null,2620,null,null,null,null,null,null,null,null,null,null,null,null,2500]
[null,2620,null,null,null,null,null,null,null,null,null,null,null,null,2500]
[null,2620,null,null,null,null,null,null,null,null,null,null,null,null,2500]
[null,2620,null,null,null,null,null,null,null,null,null,null,null,null,2500]
[null,2620,null,null,null,null,null,null,null,null,null,null,null,null,2500]
[null,2620,null,null,null,null,null,null,null,null,null,null,null,null,2500]
[null,2620,null,null,null,null,null,null,null,null,null,null,null,null,2500]
[null,2620,null,null,null,null,null,null,null,null,null,null,null,null,2500]
[null,2620,null,null,null,null,null,null,null,null,null,null,null,null,2500]
[null,2620,null,null,null,null,null,null,null,null,null,null,null,null,2500]
[null,2620,null,null,null,null,null,null,null,null,null,null,null,null,2500]
[null,2620,null,null,null,null,null,null,null,null,null,null,null,null,2500]
[null,2620,null,null,null,null,null,null,null,null,null,null,null,null,2500]
[null,2620,null,null,null,null,null,null,null,null,null,null,null,null,2500]
[null,2620,null,null,null,null,null,null,null,null,null,null,null,null,2500]
[null,2620,null,null,null,null,null,null,null,null,null,null,null,null,2500]
[null,2620,null,null,null,null,null,null,null,null,null,null,null,null,2500]
[null,2620,null,null,null,null,null,null,null,null,null,null,null,null,2500]
[null,2620,null,null,null,null,null,null,null,null,null,null,null,null,2500]
[null,2620,null,null,null,null,null,null,null,null,null,null,null,null,2500]
[null,2620,null,null,null,null,null,null,null,null,null,null,null,null,2500]
[null,2620,null,null,null,null,null,null,null,null,null,null,null,null,2500]
[null,2620,null,null,null,null,null,null,null,null,null,null,null,null,2500]
[null,2620,null,null,null,null,null,null,null,null,null,null,null,null,2500]
[null,2620,null,null,null,null,null,null,null,null,null,null,null,null,2500]
[null,2620,null,null,null,null,null,null,null,null,null,null,null,null,2500]
[null,2620,null,null,null,null,null,null,null,null,null,null,null,null,2500]
[null,2620,null,null,null,null,null,null,null,null,null,null,null,null,2500]
[null,2620,null,null,null,null,null,null,null,null,null,null,null,null,2500]
[null,2620,null,null,null,null,null,null,null,null,null,null,null,null,2500]
[null,2620,null,null,null,null,null,null,null,null,null,null,null,null,2500]
[null,2620,null,null,null,null,null,null,null,null,null,null,null,null,2500]
[null,2620,null,null,null,null,null,null,null,null,null,null,null,null,2500]
[null,2620,null,null,null,null,null,null,null,null,null,null,null,null,2500]
[null,2620,null,null,null,null,null,null,null,null,null,null,null,null,2500]
[null,2620,null,null,null,null,null,null,null,null,null,null,null,null,2500]
[null,2620,null,null,null,null,null,null,null,null,null,null,null,null,2500]
[null,2620,null,null,null,null,null,null,null,null,null,null,null,null,2500]
[null,2620,null,null,null,null,null,null,null,null,null,null,null,null,2500]
[null,2620,null,null,null,null,null,null,null,null,null,null,null,null,2500]
[null,2620,null,null,null,null,null,null,null,null,null,null,null,null,2500]
[null,2620,null,null,null,null,null,null,null,null,null,null,null,null,2500]
[null,2620,null,null,null,null,null,null,null,null,null,null,null,null,2500]
[null,2620,null,null,null,null,null,null,null,null,null,null,null,null,2500]
[null,2620,null,null,null,null,null,null,null,null,null,null,null,null,2500]
[null,2620,null,null,null,null,null,null,null,null,null,null,null,null,2500]
[null,2620,null,null,null,null,null,null,null,null,null,null,null,null,2500]
[null,2620,null,null,null,null,null,null,null,null,null,null,null,null,2500]
[null,{"$f":"B130+E131-F131","v":2620},null,null,null,null,null,null,null,null,null,null,null,null,2500]
[null,2620,null,null,null,null,null,null,null,null,null,null,null,null,2500]
[null,2620,null,null,null,null,null,null,null,null,null,null,null,null,2500]
[null,2620,null,null,null,null,null,null,null,null,null,null,null,null,2500]
[null,2620,null,null,null,null,null,null,null,null,null,null,null,null,2500]
[null,2620,null,null,null,null,null,null,null,null,null,null,null,null,2500]
[null,2620,null,null,null,null,null,null,null,null,null,null,null,null,2500]
[null,2620,null,null,null,null,null,null,null,null,null,null,null,null,2500]
[null,2620,null,null,null,null,null,null,null,null,null,null,null,null,2500]
[null,2620,null,null,null,null,null,null,null,null,null,null,null,null,2500]
[null,2620,null,null,null,null,null,null,null,null,null,null,null,null,2500]
[null,2620,null,null,null,null,null,null,null,null,null,null,null,null,2500]
[null,2620,null,null,null,null,null,null,null,null,null,null,null,null,2500]
[null,2620,null,null,null,null,null,null,null,null,null,null,null,null,2500]
[null,2620,null,null,null,null,null,null,null,null,null,null,null,null,2500]
[null,2620,null,null,null,null,null,null,null,null,null,null,null,null,2500]
[null,2620,null,null,null,null,null,null,null,null,null,null,null,null,2500]
[null,2620,null,null,null,null,null,null,null,null,null,null,null,null,2500]
[null,2620,null,null,null,null,null,null,null,null,null,null,null,null,2500]
[null,2620,null,null,null,null,null,null,null,null,null,null,null,null,2500]
[null,2620,null,null,null,null,null,null,null,null,null,null,null,null,2500]
[null,2620,null,null,null,null,null,null,null,null,null,null,null,null,2500]
[null,2620,null,null,null,null,null,null,null,null,null,null,null,null,2500]
[null,2620,null,null,null,null,null,null,null,null,null,null,null,null,2500]
[null,2620,null,null,null,null,null,null,null,null,null,null,null,null,2500]
[null,2620,null,null,null,null,null,null,null,null,null,null,null,null,2500]
[null,2620,null,null,null,null,null,null,null,null,null,null,null,null,2500]
[null,2620,null,null,null,null,null,null,null,null,null,null,null,null,2500]
[null,2620,null,null,null,null,null,null,null,null,null,null,null,null,2500]
[null,2620,null,null,null,null,null,null,null,null,null,null,null,null,2500]
[null,2620,null,null,null,null,null,null,null,null,null,null,null,null,2500]
[null,2620,null,null,null,null,null,null,null,null,null,null,null,null,2500]
[null,2620,null,null,null,null,null,null,null,null,null,null,null,null,2500]
[null,2620,null,null,null,null,null,null,null,null,null,null,null,null,2500]
[null,2620,null,null,null,null,null,null,null,null,null,null,null,null,2500]
[null,2620,null,null,null,null,null,null,null,null,null,null,null,null,2500]
[null,2620,null,null,null,null,null,null,null,null,null,null,null,null,2500]
[null,2620,null,null,null,null,null,null,null,null,null,null,null,null,2500]
[null,2620,null,null,null,null,null,null,null,null,null,null,null,null,2500]
[null,2620,null,null,null,null,null,null,null,null,null,null,null,null,2500]
[null,2620,null,null,null,null,null,null,null,null,null,null,null,null,2500]
[null,2620,null,null,null,null,null,null,null,null,null,null,null,null,2500]
[null,2620,null,null,null,null,null,null,null,null,null,null,null,null,2500]
[null,2620,null,null,null,null,null,null,null,null,null,null,null,null,2500]
[null,2620,null,null,null,null,null,null,null,null,null,null,null,null,2500]
[null,2620,null,null,null,null,null,null,null,null,null,null,null,null,2500]
[null,2620,null,null,null,null,null,null,null,null,null,null,null,null,2500]
[null,2620,null,null,null,null,null,null,null,null,null,null,null,null,2500]
[null,2620,null,null,null,null,null,null,null,null,null,null,null,null,2500]
[null,2620,null,null,null,null,null,null,null,null,null,null,null,null,2500]
[null,2620,null,null,null,null,null,null,null,null,null,null,null,null,2500]
[null,2620,null,null,null,null,null,null,null,null,null,null,null,null,2500]
[null,2620,null,null,null,null,null,null,null,null,null,null,null,null,2500]
[null,2620,null,null,null,null,null,null,null,null,null,null,null,null,2500]
[null,2620,null,null,null,null,null,null,null,null,null,null,null,null,2500]
[null,2620,null,null,null,null,null,null,null,null,null,null,null,null,2500]
[null,2620,null,null,null,null,null,null,null,null,null,null,null,null,2500]
[null,2620,null,null,null,null,null,null,null,null,null,null,null,null,2500]
[null,2620,null,null,null,null,null,null,null,null,null,null,null,null,2500]
[null,2620,null,null,null,null,null,null,null,null,null,null,null,null,2500]
[null,2620,null,null,null,null,null,null,null,null,null,null,null,null,2500]
[null,2620,null,null,null,null,null,null,null,null,null,null,null,null,2500]
[null,2620,null,null,null,null,null,null,null,null,null,null,null,null,2500]
[null,2620,null,null,null,null,null,null,null,null,null,null,null,null,2500]
[null,{"$f":"B194+E195-F195","v":2620},null,null,null,null,null,null,null,null,null,null,null,null,2500]
[null,2620,null,null,null,null,null,null,null,null,null,null,null,null,2500]
[null,2620,null,null,null,null,null,null,null,null,null,null,null,null,2500]
[null,2620,null,null,null,null,null,null,null,null,null,null,null,null,2500]
[null,2620,null,null,null,null,null,null,null,null,null,null,null,null,2500]
[null,2620,null,null,null,null,null,null,null,null,null,null,null,null,2500]
[null,2620,null,null,null,null,null,null,null,null,null,null,null,null,2500]
[null,2620,null,null,null,null,null,null,null,null,null,null,null,null,2500]
[null,2620,null,null,null,null,null,null,null,null,null,null,null,null,2500]
[null,2620,null,null,null,null,null,null,null,null,null,null,null,null,2500]
[null,2620,null,null,null,null,null,null,null,null,null,null,null,null,2500]
[null,2620,null,null,null,null,null,null,null,null,null,null,null,null,2500]
[null,2620,null,null,null,null,null,null,null,null,null,null,null,null,2500]
[null,2620,null,null,null,null,null,null,null,null,null,null,null,null,2500]
[null,2620,null,null,null,null,null,null,null,null,null,null,null,null,2500]
[null,2620,null,null,null,null,null,null,null,null,null,null,null,null,2500]
[null,2620,null,null,null,null,null,null,null,null,null,null,null,null,2500]
[null,2620,null,null,null,null,null,null,null,null,null,null,null,null,2500]
[null,2620,null,null,null,null,null,null,null,null,null,null,null,null,2500]
[null,2620,null,null,null,null,null,null,null,null,null,null,null,null,2500]
[null,2620,null,null,null,null,null,null,null,null,null,null,null,null,2500]
[null,2620,null,null,null,null,null,null,null,null,null,null,null,null,2500]
[null,2620,null,null,null,null,null,null,null,null,null,null,null,null,2500]
[null,2620,null,null,null,null,null,null,null,null,null,null,null,null,2500]
[null,2620,null,null,null,null,null,null,null,null,null,null,null,null,2500]
[null,2620,null,null,null,null,null,null,null,null,null,null,null,null,2500]
[null,2620,null,null,null,null,null,null,null,null,null,null,null,null,2500]
[null,2620,null,null,null,null,null,null,null,null,null,null,null,null,2500]
[null,2620,null,null,null,null,null,null,null,null,null,null,null,null,2500]
[null,2620,null,null,null,null,null,null,null,null,null,null,null,null,2500]
[null,2620,null,null,null,null,null,null,null,null,null,null,null,null,2500]
[null,2620,null,null,null,null,null,null,null,null,null,null,null,null,2500]
[null,2620,null,null,null,null,null,null,null,null,null,null,null,null,2500]
[null,2620,null,null,null,null,null,null,null,null,null,null,null,null,2500]
[null,2620,null,null,null,null,null,null,null,null,null,null,null,null,2500]
[null,2620,null,null,null,null,null,null,null,null,null,null,null,null,2500]
[null,2620,null,null,null,null,null,null,null,null,null,null,null,null,2500]
[null,2620,null,null,null,null,null,null,null,null,null,null,null,null,2500]
[null,2620,null,null,null,null,null,null,null,null,null,null,null,null,2500]
[null,2620,null,null,null,null,null,null,null,null,null,null,null,null,2500]
[null,2620,null,null,null,null,null,null,null,null,null,null,null,null,2500]
[null,2620,null,null,null,null,null,null,null,null,null,null,null,null,2500]
[null,2620,null,null,null,null,null,null,null,null,null,null,null,null,2500]
[null,2620,null,null,null,null,null,null,null,null,null,null,null,null,2500]
[null,2620,null,null,null,null,null,null,null,null,null,null,null,null,2500]
[null,2620,null,null,null,null,null,null,null,null,null,null,null,null,2500]
[null,2620,null,null,null,null,null,null,null,null,null,null,null,null,2500]
[null,2620,null,null,null,null,null,null,null,null,null,null,null,null,2500]
[null,2620,null,null,null,null,null,null,null,null,null,null,null,null,2500]
[null,2620,null,null,null,null,null,null,null,null,null,null,null,null,2500]
[null,2620,null,null,null,null,null,null,null,null,null,null,null,null,2500]
[null,2620,null,null,null,null,null,null,null,null,null,null,null,null,2500]
[null,2620,null,null,null,null,null,null,null,null,null,null,null,null,2500]
[null,2620,null,null,null,null,null,null,null,null,null,null,null,null,2500]
[null,2620,null,null,null,null,null,null,null,null,null,null,null,null,2500]
[null,2620,null,null,null,null,null,null,null,null,null,null,null,null,2500]
[null,2620,null,null,null,null,null,null,null,null,null,null,null,null,2500]
[null,2620,null,null,null,null,null,null,null,null,null,null,null,null,2500]
[null,2620,null,null,null,null,null,null,null,null,null,null,null,null,2500]
[null,2620,null,null,null,null,null,null,null,null,null,null,null,null,2500]
[null,2620,null,null,null,null,null,null,null,null,null,null,null,null,2500]
[null,2620,null,null,null,null,null,null,null,null,null,null,null,null,2500]
[null,2620,null,null,null,null,null,null,null,null,null,null,null,null,2500]
[null,2620,null,null,null,null,null,null,null,null,null,null,null,null,2500]
[null,{"$f":"B258+E259-F259","v":2620},null,null,null,null,null,null,null,null,null,null,null,null,2500]
[null,2620,null,null,null,null,null,null,null,null,null,null,null,null,2500]
[null,2620,null,null,null,null,null,null,null,null,null,null,null,null,2500]
[null,2620,null,null,null,null,null,null,null,null,null,null,null,null,2500]
[null,2620,null,null,null,null,null,null,null,null,null,null,null,null,2500]
[null,2620,null,null,null,null,null,null,null,null,null,null,null,null,2500]
[null,2620,null,null,null,null,null,null,null,null,null,null,null,null,2500]
[null,2620,null,null,null,null,null,null,null,null,null,null,null,null,2500]
[null,2620,null,null,null,null,null,null,null,null,null,null,null,null,2500]
[null,2620,null,null,null,null,null,null,null,null,null,null,null,null,2500]
[null,2620,null,null,null,null,null,null,null,null,null,null,null,null,2500]
[null,2620,null,null,null,null,null,null,null,null,null,null,null,null,2500]
[null,2620,null,null,null,null,null,null,null,null,null,null,null,null,2500]
[null,2620,null,null,null,null,null,null,null,null,null,null,null,null,2500]
[null,2620,null,null,null,null,null,null,null,null,null,null,null,null,2500]
[null,2620,null,null,null,null,null,null,null,null,null,null,null,null,2500]
[null,2620,null,null,null,null,null,null,null,null,null,null,null,null,2500]
[null,2620,null,null,null,null,null,null,null,null,null,null,null,null,2500]
[null,2620,null,null,null,null,null,null,null,null,null,null,null,null,2500]
[null,2620]
[null,2620]
[null,2620]
[null,2620]
[null,2620]
[null,2620]
[null,2620]
[null,2620]
[null,2620]
[null,2620]
[null,2620]
[null,2620]
[null,2620]
[null,2620]
[null,2620]
[null,2620]
[null,2620]
[null,2620]
[null,2620]
[null,2620]
[null,2620]
[null,2620]
[null,2620]
[null,2620]
[null,2620]
[null,2620]
[null,2620]
[null,2620]
[null,2620]
[null,2620]
[null,2620]
[null,2620]
[null,2620]
[null,2620]
[null,2620]
[null,2620]
[null,2620]
[null,2620]
[null,2620]
[null,2620]
[null,2620]
[null,2620]
[null,2620]
[null,2620]
[null,2620]
[null,{"$f":"B322+E323-F323","v":2620}]
[null,2620]
[null,2620]
[null,2620]
[null,2620]
[null,2620]
[null,2620]
[null,2620]
[null,2620]
[null,2620]
[null,2620]
[null,2620]
[null,2620]
[null,2620]
[null,2620]
[null,2620]
[null,2620]
[null,2620]
[null,2620]
[null,2620]
[null,2620]
[null,2620]
[null,2620]
[null,2620]
[null,2620]
[null,2620]
[null,2620]
[null,2620]
[null,2620]
[null,2620]
[null,2620]
[null,2620]
[null,2620]
[null,2620]
[null,2620]
[null,2620]
[null,2620]
[null,2620]
[null,2620]
[null,2620]
[null,2620]
[null,2620]
[null,2620]
[null,2620]
[null,2620]
[null,2620]
[null,2620]
[null,2620]
[null,2620]
[null,2620]
[null,2620]
[null,2620]
[null,2620]
[null,2620]
[null,2620]
[null,2620]
[null,2620]
[null,2620]
[null,2620]
[null,2620]
[null,2620]
[null,2620]
[null,2620]
[null,2620]
[null,{"$f":"B386+E387-F387","v":2620}]
[null,2620]
[null,2620]
[null,2620]
[null,2620]
[null,2620]
[null,2620]
[null,2620]
[null,2620]
[null,2620]
[null,2620]
[null,2620]
[null,2620]
[null,2620]
[null,{"$f":"B400+E401-F401","v":2620}]
[null,2620]
[null,2620]
[null,2620]
[null,2620]
[null,2620]
[null,2620]
[null,2620]
[null,2620]
[null,2620]
[null,2620]
[null,2620]
[null,2620]
[null,2620]
[null,2620]
[null,2620]
[null,2620]
[null,2620]
[null,2620]
[null,2620]
[null,2620]
[null,2620]
[null,2620]
[null,2620]
[null,2620]
[null,2620]
[null,2620]
[null,2620]
[null,2620]
[null,2620]
[null,2620]

{"sheet":"سلف العاملين بالشركة","index":1,"n_rows":53,"n_cols":10,"rows_kept":53,"cut":false,"hidden":false,"merged":[[0,4,0,6]]}
[null,null,null,null,"كشف سلف العاملين بالشركة حتي  تاريخ ",null,null,{"$f":"TODAY()","v":"2022-04-11"}]
[null,null,null,null,"الاسم","الوظيفة","الكود","المديونية"]
[null,null,null,null,"الاسم1","محاسب","A101",null,"sheet1",1]
[null,null,null,null,"الاسم2","محاسب","A102",null,"sheet2",2]
[null,null,null,null,"الاسم3","مهندس","E101",null,"sheet3",3]
[null,null,null,null,"الاسم4","مهندس","E103",null,"sheet4",4]
[null,null,null,null,"الاسم5","سائق","D102",null,"sheet5",5]
[null,null,null,null,"الاسم6","سائق","D103",null,"sheet6",6]
[null,null,null,null,"الاسم7","محاسب","A104",null,"sheet7",7]
[null,null,null,null,"الاسم8","مهندس","E104",null,"sheet8",8]
[null,null,null,null,"الاسم9","مهندس","E105",null,"sheet9",9]
[null,null,null,null,"الاسم10","مهندس","E107",null,"sheet10",10]
[null,null,null,null,"الاسم11","محاسب","A105",null,"sheet11",11]
[null,null,null,null,"الاسم12","محاسب","A106",null,"sheet12",12]
[null,null,null,null,"الاسم13","مشرف","C101",null,"sheet13",13]
[null,null,null,null,"الاسم14","مسؤل مشتريات","C102",null,"sheet14",14]
[null,null,null,null,"الاسم15","سباك","C104",null,"sheet15",15]
[null,null,null,null,"الاسم16","مشرف","C105",null,"sheet16",16]
[null,null,null,null,"الاسم17","سائق","D107",null,"sheet17",17]
[null,null,null,null,"الاسم18","سائق","D108",null,"sheet18",18]
[null,null,null,null,"الاسم19","سائق","D109",null,"الاسم19",19]
[null,null,null,null,"الاسم20","غفره","S104",null,"الاسم20",20]
[null,null,null,null,"الاسم21","غفره","S105",null,"الاسم21",21]
[null,null,null,null,"الاسم22","غفره","S106",null,"الاسم22",22]
[null,null,null,null,"الاسم23","سائق لودر","D110",null,"الاسم23",23]
[null,null,null,null,"الاسم24","مهندس","E110",null,"الاسم24",24]
[null,null,null,null,"الاسم25","سائق","D112",null,"الاسم25",25]
[null,null,null,null,"الاسم26","امين مخزن","C107",null,"الاسم26",26]
[null,null,null,null,"الاسم27","مشرف","C108",null,"الاسم27",27]
[null,null,null,null,"الاسم28","سائق","D113",null,"الاسم28",28]
[null,null,null,null,"الاسم29","سائق","D114",null,"الاسم29",29]
[null,null,null,null,"الاسم30","محاسب","A107",null,"الاسم30",30]
[null,null,null,null,"الاسم31","سائق","D115",null,"الاسم31",31]
[null,null,null,null,"الاسم32","غفره","S108",null,"الاسم32",32]
[null,null,null,null,"الاسم33","سائق لودر","D116",null,"الاسم33",33]
[null,null,null,null,null,null,null,null,null,34]
[null,null,null,null,null,null,null,null,null,35]
[null,null,null,null,null,null,null,null,null,36]
[null,null,null,null,null,null,null,null,null,37]
[null,null,null,null,null,null,null,null,null,38]
[null,null,null,null,null,null,null,null,null,39]
[null,null,null,null,null,null,null,null,null,40]
[null,null,null,null,null,null,null,null,null,41]
[null,null,null,null,null,null,null,null,null,42]
[null,null,null,null,null,null,null,null,null,43]
[null,null,null,null,null,null,null,null,null,44]
[null,null,null,null,null,null,null,null,null,45]
[null,null,null,null,null,null,null,null,null,46]
[null,null,null,null,null,0,null,null,null,47]
[null,null,null,null,null,null,null,null,null,48]
[null,null,null,null,"الاجمالي",0,null,{"$f":"SUM(H3:H49)","v":0},null,49]
[null,null,null,null,null,0]
[null,null,null,null,"الاجمالي"]

{"sheet":"Sheet2","index":2,"n_rows":431,"n_cols":19,"rows_kept":431,"cut":false,"hidden":false,"merged":[]}
["الانتقال","رصيـــــــــد","التاريــــــــــــــــخ ","رقم الايصال","عهده","مصروفـــــــــــــات","بيـــــــــــــان","التوجيه","كود التحليل","التحليل","الموقع","صرفت / استلمت بواسطة","ملاحظات","الانتقال","رصيـــــــــد","تسوية","سلفه","بيـــــــــــــان","التاريــــــــــــــــخ "]
[null,null,null,null,null,null,"تصفية بتاريخ 25/5/2019",null,null,null,null,null,null,null,null,null,null,"سلف"]
[null,{"$f":"B2+E3-F3","v":300},"2022-01-01",null,300,null,"عهدة",null,null,null,null,null,null,null,500,null,500,"سلفه1"]
[null,1300,"2022-01-11",null,1000,null,"عهدة",null,null,null,null,null,null,null,1500,null,1000,"سلفه2","2021-12-19"]
[null,1800,"2022-01-17",null,500,null,"عهدة",null,null,null,null,null,null,null,1970,null,470,"سلفه3"]
[null,2385,"2022-01-18",null,585,null,"عهدة",null,null,null,null,null,null,null,1985,null,15,"سلفه4"]
[null,2080,"2022-01-09",null,null,305,"ح / 55 رسوم طريق + 250 بنزين الكرولا 5238",5238,"قسم الحركة",null,null,null,null,null,-500,2485,null,"خصمت من مرتب شهر12"]
[null,2010,"من 12/1/2022 الي 17/1/2022",null,null,70,"رسوم طريق","رسوم طريق","قسم الحركة",null,null,null,null,null,0,null,500,"سلفه5","2022-01-01"]
[null,1075,"من 12/1/2022 الي 17/1/2022",null,null,935,"محروقات السيارة الاسكودا البيضاء","محروقات","قسم الحركة",null,null,null,null,null,0,0,0,"سلفه6"]
[null,995,"2022-01-17",null,null,80,"غسيل السيارة الاسكودا البيضاء","غسيل","قسم الحركة",null,null,null,null,null,470,null,470,"سلفه7","2022-02-02"]
[null,1995,"2022-01-31",null,1000,null,"عهده إبراهيم البعار بيد ا0محمد",null,null,null,null,null,null,null,0,470,0,"خصمت من مرتب شهر01 / 2022"]
[null,1465,"2022-01-31",null,null,530,"ح / فاتورة خشب كونتر طبقات 7 م  + 70 نقل للجلاء",null,null,null,null,null,null,null,500,null,500,"سلفه8","2022-02-08"]
[null,995,null,null,null,470,"باقي 1000 عهدة فاتورة الخشب توضع سلفه",null,null,null,null,null,null,null,1000,null,500,"سلفه9","2022-05-19"]
[null,1595,"2022-02-09",null,600,null,"عهدة",null,null,null,null,null,null,null,0,1000,0,"خصمت من مرتب شهر02 / 2022"]
[null,1555,"2022-02-08",null,null,40,"ح / رسوم طريق الاسكودا 5468",null,null,null,null,null,null,null,1000,null,1000,"سلفه10","2022-03-14"]
[null,1055,"2022-02-08",null,null,500,"بنزين الاسكودا 5468",null,null,null,null,null,null,null,1500,null,500,"سلفه11","2022-03-26"]
[null,1005,"2022-02-08",null,null,50,"مصاريف فطار ( بيد إبراهيم البعار )",null,null,null,null,null,null,null,2500,null,1000,"سلفه12","2022-04-09"]
[null,2505,"2022-02-12",null,1500,null,"عهدة",null,null,null,null,null,null,null,2500]
[null,2465,"9/2/2022+12/2/2022",null,null,40,"ح / رسوم طريق الاسكودا 5468",null,null,null,null,null,null,null,2500]
[null,1595,"9/2/2022+12/2/2022",null,null,870,"بنزين الاسكودا 5468",null,null,null,null,null,null,null,2500]
[null,1560,"2022-02-12",null,null,35,"فاتورة صابون لغسيل الاسكودا 5468",null,null,null,null,null,null,null,2500]
[null,1550,"2022-02-12",null,null,10,"باركنج للسيارة الاسكودا 5468",null,null,null,null,null,null,null,2500]
[null,3550,"2022-02-24",null,2000,null,"عهدة",null,null,null,null,null,null,null,2500]
[null,4100,"2022-02-24",null,550,null,"عهدة",null,null,null,null,null,null,null,2500]
[null,3120,"2022-02-24",null,null,980,"ح / مصاريف خاصة(170 فطار ومشاريب + 750 غداء وحاجه ساقعه+60 مشاريب )",null,null,null,null,null,null,null,2500]
[null,3065,"من21/2/2022 الي 24/2/2022",null,null,55,"ح / رسوم طريق",null,null,null,null,null,null,null,2500]
[null,2720,"2022-02-23",null,null,345,"سولار الدبل 5124",null,null,null,null,null,null,null,2500]
[null,2570,"2022-02-23",null,null,150,"ح / مخالفة طريق",null,null,null,null,null,null,null,2500]
[null,2540,"2022-02-23",null,null,30,"ح / شطف وضبط كاوتش وفلتر الدبل 5124",null,null,null,null,null,null,null,2500]
[null,3040,"2022-03-03",null,500,null,"عهدة",null,null,null,null,null,null,null,2500]
[null,3790,"2022-03-09",null,750,null,"عهدة",null,null,null,null,null,null,null,2500]
[null,4300,"2022-03-10",null,510,null,"عهدة",null,null,null,null,null,null,null,2500]
[null,4080,null,null,null,220,"رسوم طريق","م تشغيل",null,null,"قسم الحركة","المشتري1",null,null,2500]
[null,3580,"2022-02-26",null,null,500,"بنزين95 السياره الكودياك (5468)","المحروقات",null,null,"قسم الحركة","المشتري1",null,null,2500]
[null,3150,"2022-02-28",null,null,430,"بنزين92 السياره الكودياك (5468)","المحروقات",null,null,"قسم الحركة","المشتري1",null,null,2500]
[null,2800,"2022-03-03",null,null,350,"بنزين92 السياره الكودياك (5468)","المحروقات",null,null,"قسم الحركة","المشتري1",null,null,2500]
[null,2410,"2022-03-08",null,null,390,"بنزين95 السياره الكودياك (5468)","المحروقات",null,null,"قسم الحركة","المشتري1",null,null,2500]
[null,2110,"2022-03-08",null,null,300,"بنزين95 السياره الكودياك (5468)","المحروقات",null,null,"قسم الحركة","المشتري1",null,null,2500]
[null,1675,"2022-03-09",null,null,435,"بنزين95 السياره الكودياك (5468)","المحروقات",null,null,"قسم الحركة","المشتري1",null,null,2500]
[null,1215,"2022-03-12",null,null,460,"بنزين95 السياره الكودياك (5468)","المحروقات",null,null,"قسم الحركة","المشتري1",null,null,2500]
[null,945,"2022-03-13",null,null,270,"بنزين95 السياره الكودياك (5468)","المحروقات",null,null,"قسم الحركة","المشتري1",null,null,2500]
[null,940,"2022-03-05",null,null,5,"رسوم دخول المركز الطبي","م تشغيل",null,null,"قسم الحركة","المشتري1",null,null,2500]
[null,925,"2022-03-08",null,null,15,"علبه مناديل فاين السياره الكودياك(5468)","م تشغيل",null,null,"قسم الحركة","المشتري1",null,null,2500]
[null,885,"2022-03-10",null,null,40,"غسيل + صيانه كاوتش السياره الكودياك(5468)","صيانة السيارات",null,null,"قسم الحركة","المشتري1",null,null,2500]
[null,855,"-",null,null,30,"غسيل سياره الضيف(بدون فاتوره)","م عموميه",null,null,"قسم الحركة","المشتري1",null,null,2500]
[null,780,"-",null,null,75,"مصاريف خاصه م/عماد (فطار + مياه) بدون فاتوره","م عموميه",null,null,"قسم الحركة","المشتري1",null,null,2500]
[null,740,"-",null,null,40,"معجون أسنان م/عماد(بدون فاتوره)","م عموميه",null,null,"قسم الحركة","المشتري1",null,null,2500]
[null,730,"-",null,null,10,"علبه ينسون للمكتب(بدون فاتوره)","م عموميه",null,null,"قسم الحركة","المشتري1",null,null,2500]
[null,715,"-",null,null,15,"ح/عامل تحميل كراتين الحلوق القاهره(بدون فاتوره)","م تشغيل",null,null,"قسم الحركة","المشتري1",null,null,2500]
[null,695,"-",null,null,20,"غسيل السياره الكودياك(5468)","م تشغيل",null,null,"قسم الحركة","المشتري1",null,null,2500]
[null,1485,"2022-03-14",null,790,null,"عهدة",null,null,null,null,"المشتري1",null,null,2500]
[null,1415,"16/3/2022+19/3/2022",null,null,70,"رسوم طريق","م تشغيل",null,null,"قسم الحركة","المشتري1",null,null,2500]
[null,480,"16/3/2022+19/3/2022",null,null,935,"ح / عدد 2 فاتورة بنزين الاسكودا5468","المحروقات",null,null,"قسم الحركة","المشتري1",null,null,2500]
[null,470,"2022-03-20",null,null,10,"ح / رسوم طريق","م تشغيل",null,null,"قسم الحركة","المشتري1",null,null,2500]
[null,5,"2022-03-20",null,null,465,"ح / فاتورة بنزين 92 الاسكودا","المحروقات",null,null,"قسم الحركة","المشتري1",null,null,2500]
[null,1500,"2022-03-21",null,1495,null,"عهدة",null,null,null,null,"المشتري1",null,null,2500]
[null,1480,"2022-03-22",null,null,20,"عدد 3 كارته رسوم طريق (القاهره)","م تشغيل",null,null,"قسم الحركة","المشتري1",null,null,2500]
[null,1080,"2022-03-22",null,null,400,"فاتوره بنزين 95 السياره الكودياك (5468)","المحروقات",null,null,"قسم الحركة","المشتري1",null,null,2500]
[null,1075,"2022-03-22",null,null,5,"ايصال دخول مبني الزراعات بالقاهره","م تشغيل",null,null,"قسم الحركة","المشتري1",null,null,2500]
[null,1500,"2022-03-24",null,425,null,"عهدة",null,null,null,null,null,null,null,2500]
[null,1980,"30/03/2022",null,480,null,"عهدة",null,null,null,null,null,null,null,2500]
[null,2680,"2022-04-05",null,700,null,"عهدة",null,null,null,null,null,null,null,2500]
[null,3245,"2022-07-04",null,565,null,"عهدة",null,null,null,null,null,null,null,2500]
[null,3805,"2022-07-04",null,560,null,"عهدة",null,null,null,null,null,null,null,2500]
[null,3805,null,null,null,null,null,null,null,null,null,null,null,null,2500]
[null,3805,null,null,null,null,null,null,null,null,null,null,null,null,2500]
[null,{"$f":"B66+E67-F67","v":3805},null,null,null,null,null,null,null,null,null,null,null,null,2500]
[null,3805,null,null,null,null,null,null,null,null,null,null,null,null,2500]
[null,3805,null,null,null,null,null,null,null,null,null,null,null,null,2500]
[null,3805,null,null,null,null,null,null,null,null,null,null,null,null,2500]
[null,3805,null,null,null,null,null,null,null,null,null,null,null,null,2500]
[null,3805,null,null,null,null,null,null,null,null,null,null,null,null,2500]
[null,3805,null,null,null,null,null,null,null,null,null,null,null,null,2500]
[null,3805,null,null,null,null,null,null,null,null,null,null,null,null,2500]
[null,3805,null,null,null,null,null,null,null,null,null,null,null,null,2500]
[null,3805,null,null,null,null,null,null,null,null,null,null,null,null,2500]
[null,3805,null,null,null,null,null,null,null,null,null,null,null,null,2500]
[null,3805,null,null,null,null,null,null,null,null,null,null,null,null,2500]
[null,3805,null,null,null,null,null,null,null,null,null,null,null,null,2500]
[null,3805,null,null,null,null,null,null,null,null,null,null,null,null,2500]
[null,3805,null,null,null,null,null,null,null,null,null,null,null,null,2500]
[null,3805,null,null,null,null,null,null,null,null,null,null,null,null,2500]
[null,3805,null,null,null,null,null,null,null,null,null,null,null,null,2500]
[null,3805,null,null,null,null,null,null,null,null,null,null,null,null,2500]
[null,3805,null,null,null,null,null,null,null,null,null,null,null,null,2500]
[null,3805,null,null,null,null,null,null,null,null,null,null,null,null,2500]
[null,3805,null,null,null,null,null,null,null,null,null,null,null,null,2500]
[null,3805,null,null,null,null,null,null,null,null,null,null,null,null,2500]
[null,3805,null,null,null,null,null,null,null,null,null,null,null,null,2500]
[null,3805,null,null,null,null,null,null,null,null,null,null,null,null,2500]
[null,3805,null,null,null,null,null,null,null,null,null,null,null,null,2500]
[null,3805,null,null,null,null,null,null,null,null,null,null,null,null,2500]
[null,3805,null,null,null,null,null,null,null,null,null,null,null,null,2500]
[null,3805,null,null,null,null,null,null,null,null,null,null,null,null,2500]
[null,3805,null,null,null,null,null,null,null,null,null,null,null,null,2500]
[null,3805,null,null,null,null,null,null,null,null,null,null,null,null,2500]
[null,3805,null,null,null,null,null,null,null,null,null,null,null,null,2500]
[null,3805,null,null,null,null,null,null,null,null,null,null,null,null,2500]
[null,3805,null,null,null,null,null,null,null,null,null,null,null,null,2500]
[null,3805,null,null,null,null,null,null,null,null,null,null,null,null,2500]
[null,3805,null,null,null,null,null,null,null,null,null,null,null,null,2500]
[null,3805,null,null,null,null,null,null,null,null,null,null,null,null,2500]
[null,3805,null,null,null,null,null,null,null,null,null,null,null,null,2500]
[null,3805,null,null,null,null,null,null,null,null,null,null,null,null,2500]
[null,3805,null,null,null,null,null,null,null,null,null,null,null,null,2500]
[null,3805,null,null,null,null,null,null,null,null,null,null,null,null,2500]
[null,3805,null,null,null,null,null,null,null,null,null,null,null,null,2500]
[null,3805,null,null,null,null,null,null,null,null,null,null,null,null,2500]
[null,3805,null,null,null,null,null,null,null,null,null,null,null,null,2500]
[null,3805,null,null,null,null,null,null,null,null,null,null,null,null,2500]
[null,3805,null,null,null,null,null,null,null,null,null,null,null,null,2500]
[null,3805,null,null,null,null,null,null,null,null,null,null,null,null,2500]
[null,3805,null,null,null,null,null,null,null,null,null,null,null,null,2500]
[null,3805,null,null,null,null,null,null,null,null,null,null,null,null,2500]
[null,3805,null,null,null,null,null,null,null,null,null,null,null,null,2500]
[null,3805,null,null,null,null,null,null,null,null,null,null,null,null,2500]
[null,3805,null,null,null,null,null,null,null,null,null,null,null,null,2500]
[null,3805,null,null,null,null,null,null,null,null,null,null,null,null,2500]
[null,3805,null,null,null,null,null,null,null,null,null,null,null,null,2500]
[null,3805,null,null,null,null,null,null,null,null,null,null,null,null,2500]
[null,3805,null,null,null,null,null,null,null,null,null,null,null,null,2500]
[null,3805,null,null,null,null,null,null,null,null,null,null,null,null,2500]
[null,3805,null,null,null,null,null,null,null,null,null,null,null,null,2500]
[null,3805,null,null,null,null,null,null,null,null,null,null,null,null,2500]
[null,3805,null,null,null,null,null,null,null,null,null,null,null,null,2500]
[null,3805,null,null,null,null,null,null,null,null,null,null,null,null,2500]
[null,3805,null,null,null,null,null,null,null,null,null,null,null,null,2500]
[null,3805,null,null,null,null,null,null,null,null,null,null,null,null,2500]
[null,3805,null,null,null,null,null,null,null,null,null,null,null,null,2500]
[null,3805,null,null,null,null,null,null,null,null,null,null,null,null,2500]
[null,{"$f":"B130+E131-F131","v":3805},null,null,null,null,null,null,null,null,null,null,null,null,2500]
[null,3805,null,null,null,null,null,null,null,null,null,null,null,null,2500]
[null,3805,null,null,null,null,null,null,null,null,null,null,null,null,2500]
[null,3805,null,null,null,null,null,null,null,null,null,null,null,null,2500]
[null,3805,null,null,null,null,null,null,null,null,null,null,null,null,2500]
[null,3805,null,null,null,null,null,null,null,null,null,null,null,null,2500]
[null,3805,null,null,null,null,null,null,null,null,null,null,null,null,2500]
[null,3805,null,null,null,null,null,null,null,null,null,null,null,null,2500]
[null,3805,null,null,null,null,null,null,null,null,null,null,null,null,2500]
[null,3805,null,null,null,null,null,null,null,null,null,null,null,null,2500]
[null,3805,null,null,null,null,null,null,null,null,null,null,null,null,2500]
[null,3805,null,null,null,null,null,null,null,null,null,null,null,null,2500]
[null,3805,null,null,null,null,null,null,null,null,null,null,null,null,2500]
[null,3805,null,null,null,null,null,null,null,null,null,null,null,null,2500]
[null,3805,null,null,null,null,null,null,null,null,null,null,null,null,2500]
[null,3805,null,null,null,null,null,null,null,null,null,null,null,null,2500]
[null,3805,null,null,null,null,null,null,null,null,null,null,null,null,2500]
[null,3805,null,null,null,null,null,null,null,null,null,null,null,null,2500]
[null,3805,null,null,null,null,null,null,null,null,null,null,null,null,2500]
[null,3805,null,null,null,null,null,null,null,null,null,null,null,null,2500]
[null,3805,null,null,null,null,null,null,null,null,null,null,null,null,2500]
[null,3805,null,null,null,null,null,null,null,null,null,null,null,null,2500]
[null,3805,null,null,null,null,null,null,null,null,null,null,null,null,2500]
[null,3805,null,null,null,null,null,null,null,null,null,null,null,null,2500]
[null,3805,null,null,null,null,null,null,null,null,null,null,null,null,2500]
[null,3805,null,null,null,null,null,null,null,null,null,null,null,null,2500]
[null,3805,null,null,null,null,null,null,null,null,null,null,null,null,2500]
[null,3805,null,null,null,null,null,null,null,null,null,null,null,null,2500]
[null,3805,null,null,null,null,null,null,null,null,null,null,null,null,2500]
[null,3805,null,null,null,null,null,null,null,null,null,null,null,null,2500]
[null,3805,null,null,null,null,null,null,null,null,null,null,null,null,2500]
[null,3805,null,null,null,null,null,null,null,null,null,null,null,null,2500]
[null,3805,null,null,null,null,null,null,null,null,null,null,null,null,2500]
[null,3805,null,null,null,null,null,null,null,null,null,null,null,null,2500]
[null,3805,null,null,null,null,null,null,null,null,null,null,null,null,2500]
[null,3805,null,null,null,null,null,null,null,null,null,null,null,null,2500]
[null,3805,null,null,null,null,null,null,null,null,null,null,null,null,2500]
[null,3805,null,null,null,null,null,null,null,null,null,null,null,null,2500]
[null,3805,null,null,null,null,null,null,null,null,null,null,null,null,2500]
[null,3805,null,null,null,null,null,null,null,null,null,null,null,null,2500]
[null,3805,null,null,null,null,null,null,null,null,null,null,null,null,2500]
[null,3805,null,null,null,null,null,null,null,null,null,null,null,null,2500]
[null,3805,null,null,null,null,null,null,null,null,null,null,null,null,2500]
[null,3805,null,null,null,null,null,null,null,null,null,null,null,null,2500]
[null,3805,null,null,null,null,null,null,null,null,null,null,null,null,2500]
[null,3805,null,null,null,null,null,null,null,null,null,null,null,null,2500]
[null,3805,null,null,null,null,null,null,null,null,null,null,null,null,2500]
[null,3805,null,null,null,null,null,null,null,null,null,null,null,null,2500]
[null,3805,null,null,null,null,null,null,null,null,null,null,null,null,2500]
[null,3805,null,null,null,null,null,null,null,null,null,null,null,null,2500]
[null,3805,null,null,null,null,null,null,null,null,null,null,null,null,2500]
[null,3805,null,null,null,null,null,null,null,null,null,null,null,null,2500]
[null,3805,null,null,null,null,null,null,null,null,null,null,null,null,2500]
[null,3805,null,null,null,null,null,null,null,null,null,null,null,null,2500]
[null,3805,null,null,null,null,null,null,null,null,null,null,null,null,2500]
[null,3805,null,null,null,null,null,null,null,null,null,null,null,null,2500]
[null,3805,null,null,null,null,null,null,null,null,null,null,null,null,2500]
[null,3805,null,null,null,null,null,null,null,null,null,null,null,null,2500]
[null,3805,null,null,null,null,null,null,null,null,null,null,null,null,2500]
[null,3805,null,null,null,null,null,null,null,null,null,null,null,null,2500]
[null,3805,null,null,null,null,null,null,null,null,null,null,null,null,2500]
[null,3805,null,null,null,null,null,null,null,null,null,null,null,null,2500]
[null,3805,null,null,null,null,null,null,null,null,null,null,null,null,2500]
[null,3805,null,null,null,null,null,null,null,null,null,null,null,null,2500]
[null,{"$f":"B194+E195-F195","v":3805},null,null,null,null,null,null,null,null,null,null,null,null,2500]
[null,3805,null,null,null,null,null,null,null,null,null,null,null,null,2500]
[null,3805,null,null,null,null,null,null,null,null,null,null,null,null,2500]
[null,3805,null,null,null,null,null,null,null,null,null,null,null,null,2500]
[null,3805,null,null,null,null,null,null,null,null,null,null,null,null,2500]
[null,3805,null,null,null,null,null,null,null,null,null,null,null,null,2500]
[null,3805,null,null,null,null,null,null,null,null,null,null,null,null,2500]
[null,3805,null,null,null,null,null,null,null,null,null,null,null,null,2500]
[null,3805,null,null,null,null,null,null,null,null,null,null,null,null,2500]
[null,3805,null,null,null,null,null,null,null,null,null,null,null,null,2500]
[null,3805,null,null,null,null,null,null,null,null,null,null,null,null,2500]
[null,3805,null,null,null,null,null,null,null,null,null,null,null,null,2500]
[null,3805,null,null,null,null,null,null,null,null,null,null,null,null,2500]
[null,3805,null,null,null,null,null,null,null,null,null,null,null,null,2500]
[null,3805,null,null,null,null,null,null,null,null,null,null,null,null,2500]
[null,3805,null,null,null,null,null,null,null,null,null,null,null,null,2500]
[null,3805,null,null,null,null,null,null,null,null,null,null,null,null,2500]
[null,3805,null,null,null,null,null,null,null,null,null,null,null,null,2500]
[null,3805,null,null,null,null,null,null,null,null,null,null,null,null,2500]
[null,3805,null,null,null,null,null,null,null,null,null,null,null,null,2500]
[null,3805,null,null,null,null,null,null,null,null,null,null,null,null,2500]
[null,3805,null,null,null,null,null,null,null,null,null,null,null,null,2500]
[null,3805,null,null,null,null,null,null,null,null,null,null,null,null,2500]
[null,3805,null,null,null,null,null,null,null,null,null,null,null,null,2500]
[null,3805,null,null,null,null,null,null,null,null,null,null,null,null,2500]
[null,3805,null,null,null,null,null,null,null,null,null,null,null,null,2500]
[null,3805,null,null,null,null,null,null,null,null,null,null,null,null,2500]
[null,3805,null,null,null,null,null,null,null,null,null,null,null,null,2500]
[null,3805,null,null,null,null,null,null,null,null,null,null,null,null,2500]
[null,3805,null,null,null,null,null,null,null,null,null,null,null,null,2500]
[null,3805,null,null,null,null,null,null,null,null,null,null,null,null,2500]
[null,3805,null,null,null,null,null,null,null,null,null,null,null,null,2500]
[null,3805,null,null,null,null,null,null,null,null,null,null,null,null,2500]
[null,3805,null,null,null,null,null,null,null,null,null,null,null,null,2500]
[null,3805,null,null,null,null,null,null,null,null,null,null,null,null,2500]
[null,3805,null,null,null,null,null,null,null,null,null,null,null,null,2500]
[null,3805,null,null,null,null,null,null,null,null,null,null,null,null,2500]
[null,3805,null,null,null,null,null,null,null,null,null,null,null,null,2500]
[null,3805,null,null,null,null,null,null,null,null,null,null,null,null,2500]
[null,3805,null,null,null,null,null,null,null,null,null,null,null,null,2500]
[null,3805,null,null,null,null,null,null,null,null,null,null,null,null,2500]
[null,3805,null,null,null,null,null,null,null,null,null,null,null,null,2500]
[null,3805,null,null,null,null,null,null,null,null,null,null,null,null,2500]
[null,3805,null,null,null,null,null,null,null,null,null,null,null,null,2500]
[null,3805,null,null,null,null,null,null,null,null,null,null,null,null,2500]
[null,3805,null,null,null,null,null,null,null,null,null,null,null,null,2500]
[null,3805,null,null,null,null,null,null,null,null,null,null,null,null,2500]
[null,3805,null,null,null,null,null,null,null,null,null,null,null,null,2500]
[null,3805,null,null,null,null,null,null,null,null,null,null,null,null,2500]
[null,3805,null,null,null,null,null,null,null,null,null,null,null,null,2500]
[null,3805,null,null,null,null,null,null,null,null,null,null,null,null,2500]
[null,3805,null,null,null,null,null,null,null,null,null,null,null,null,2500]
[null,3805,null,null,null,null,null,null,null,null,null,null,null,null,2500]
[null,3805,null,null,null,null,null,null,null,null,null,null,null,null,2500]
[null,3805,null,null,null,null,null,null,null,null,null,null,null,null,2500]
[null,3805,null,null,null,null,null,null,null,null,null,null,null,null,2500]
[null,3805,null,null,null,null,null,null,null,null,null,null,null,null,2500]
[null,3805,null,null,null,null,null,null,null,null,null,null,null,null,2500]
[null,3805,null,null,null,null,null,null,null,null,null,null,null,null,2500]
[null,3805,null,null,null,null,null,null,null,null,null,null,null,null,2500]
[null,3805,null,null,null,null,null,null,null,null,null,null,null,null,2500]
[null,3805,null,null,null,null,null,null,null,null,null,null,null,null,2500]
[null,3805,null,null,null,null,null,null,null,null,null,null,null,null,2500]
[null,3805,null,null,null,null,null,null,null,null,null,null,null,null,2500]
[null,{"$f":"B258+E259-F259","v":3805},null,null,null,null,null,null,null,null,null,null,null,null,2500]
[null,3805,null,null,null,null,null,null,null,null,null,null,null,null,2500]
[null,3805,null,null,null,null,null,null,null,null,null,null,null,null,2500]
[null,3805,null,null,null,null,null,null,null,null,null,null,null,null,2500]
[null,3805,null,null,null,null,null,null,null,null,null,null,null,null,2500]
[null,3805,null,null,null,null,null,null,null,null,null,null,null,null,2500]
[null,3805,null,null,null,null,null,null,null,null,null,null,null,null,2500]
[null,3805,null,null,null,null,null,null,null,null,null,null,null,null,2500]
[null,3805,null,null,null,null,null,null,null,null,null,null,null,null,2500]
[null,3805,null,null,null,null,null,null,null,null,null,null,null,null,2500]
[null,3805,null,null,null,null,null,null,null,null,null,null,null,null,2500]
[null,3805,null,null,null,null,null,null,null,null,null,null,null,null,2500]
[null,3805,null,null,null,null,null,null,null,null,null,null,null,null,2500]
[null,3805,null,null,null,null,null,null,null,null,null,null,null,null,2500]
[null,3805,null,null,null,null,null,null,null,null,null,null,null,null,2500]
[null,3805,null,null,null,null,null,null,null,null,null,null,null,null,2500]
[null,3805,null,null,null,null,null,null,null,null,null,null,null,null,2500]
[null,3805,null,null,null,null,null,null,null,null,null,null,null,null,2500]
[null,3805,null,null,null,null,null,null,null,null,null,null,null,null,2500]
[null,3805]
[null,3805]
[null,3805]
[null,3805]
[null,3805]
[null,3805]
[null,3805]
[null,3805]
[null,3805]
[null,3805]
[null,3805]
[null,3805]
[null,3805]
[null,3805]
[null,3805]
[null,3805]
[null,3805]
[null,3805]
[null,3805]
[null,3805]
[null,3805]
[null,3805]
[null,3805]
[null,3805]
[null,3805]
[null,3805]
[null,3805]
[null,3805]
[null,3805]
[null,3805]
[null,3805]
[null,3805]
[null,3805]
[null,3805]
[null,3805]
[null,3805]
[null,3805]
[null,3805]
[null,3805]
[null,3805]
[null,3805]
[null,3805]
[null,3805]
[null,3805]
[null,3805]
[null,{"$f":"B322+E323-F323","v":3805}]
[null,3805]
[null,3805]
[null,3805]
[null,3805]
[null,3805]
[null,3805]
[null,3805]
[null,3805]
[null,3805]
[null,3805]
[null,3805]
[null,3805]
[null,3805]
[null,3805]
[null,3805]
[null,3805]
[null,3805]
[null,3805]
[null,3805]
[null,3805]
[null,3805]
[null,3805]
[null,3805]
[null,3805]
[null,3805]
[null,3805]
[null,3805]
[null,3805]
[null,3805]
[null,3805]
[null,3805]
[null,3805]
[null,3805]
[null,3805]
[null,3805]
[null,3805]
[null,3805]
[null,3805]
[null,3805]
[null,3805]
[null,3805]
[null,3805]
[null,3805]
[null,3805]
[null,3805]
[null,3805]
[null,3805]
[null,3805]
[null,3805]
[null,3805]
[null,3805]
[null,3805]
[null,3805]
[null,3805]
[null,3805]
[null,3805]
[null,3805]
[null,3805]
[null,3805]
[null,3805]
[null,3805]
[null,3805]
[null,3805]
[null,{"$f":"B386+E387-F387","v":3805}]
[null,3805]
[null,3805]
[null,3805]
[null,3805]
[null,3805]
[null,3805]
[null,3805]
[null,3805]
[null,3805]
[null,3805]
[null,3805]
[null,3805]
[null,3805]
[null,3805]
[null,3805]
[null,3805]
[null,3805]
[null,3805]
[null,3805]
[null,3805]
[null,3805]
[null,3805]
[null,3805]
[null,3805]
[null,3805]
[null,3805]
[null,3805]
[null,3805]
[null,3805]
[null,3805]
[null,3805]
[null,3805]
[null,3805]
[null,3805]
[null,3805]
[null,3805]
[null,3805]
[null,3805]
[null,3805]
[null,3805]
[null,3805]
[null,3805]
[null,3805]
[null,3805]

{"sheet":"Sheet3","index":3,"n_rows":431,"n_cols":19,"rows_kept":431,"cut":false,"hidden":false,"merged":[]}
["الانتقال","رصيـــــــــد","التاريــــــــــــــــخ ","رقم الايصال","عهده","مصروفـــــــــــــات","بيـــــــــــــان","التوجيه","كود التحليل","التحليل","الموقع","صرفت / استلمت بواسطة","ملاحظات","الانتقال","رصيـــــــــد","تسوية","سلفه","بيـــــــــــــان","التاريــــــــــــــــخ "]
[null,null,null,null,null,null,"تصفية بتاريخ 25/5/2019",null,null,null,null,null,null,null,null,null,null,"سلف"]
[null,{"$f":"B2+E3-F3","v":300},"2022-01-01",null,300,null,"عهدة",null,null,null,null,null,null,null,500,null,500,"سلفه1"]
[null,1300,"2022-01-11",null,1000,null,"عهدة",null,null,null,null,null,null,null,1500,null,1000,"سلفه2","2021-12-19"]
[null,1800,"2022-01-17",null,500,null,"عهدة",null,null,null,null,null,null,null,1970,null,470,"سلفه3"]
[null,2385,"2022-01-18",null,585,null,"عهدة",null,null,null,null,null,null,null,1985,null,15,"سلفه4"]
[null,2080,"2022-01-09",null,null,305,"ح / 55 رسوم طريق + 250 بنزين الكرولا 5238",5238,"قسم الحركة",null,null,null,null,null,-500,2485,null,"خصمت من مرتب شهر12"]
[null,2010,"من 12/1/2022 الي 17/1/2022",null,null,70,"رسوم طريق","رسوم طريق","قسم الحركة",null,null,null,null,null,0,null,500,"سلفه5","2022-01-01"]
[null,1075,"من 12/1/2022 الي 17/1/2022",null,null,935,"محروقات السيارة الاسكودا البيضاء","محروقات","قسم الحركة",null,null,null,null,null,0,0,0,"سلفه6"]
[null,995,"2022-01-17",null,null,80,"غسيل السيارة الاسكودا البيضاء","غسيل","قسم الحركة",null,null,null,null,null,470,null,470,"سلفه7","2022-02-02"]
[null,1995,"2022-01-31",null,1000,null,"عهده إبراهيم البعار بيد ا0محمد",null,null,null,null,null,null,null,0,470,0,"خصمت من مرتب شهر01 / 2022"]
[null,1465,"2022-01-31",null,null,530,"ح / فاتورة خشب كونتر طبقات 7 م  + 70 نقل للجلاء",null,null,null,null,null,null,null,500,null,500,"سلفه8","2022-02-08"]
[null,995,null,null,null,470,"باقي 1000 عهدة فاتورة الخشب توضع سلفه",null,null,null,null,null,null,null,1000,null,500,"سلفه9","2022-05-19"]
[null,1595,"2022-02-09",null,600,null,"عهدة",null,null,null,null,null,null,null,0,1000,0,"خصمت من مرتب شهر02 / 2022"]
[null,1555,"2022-02-08",null,null,40,"ح / رسوم طريق الاسكودا 5468",null,null,null,null,null,null,null,1000,null,1000,"سلفه10","2022-03-14"]
[null,1055,"2022-02-08",null,null,500,"بنزين الاسكودا 5468",null,null,null,null,null,null,null,1500,null,500,"سلفه11","2022-03-26"]
[null,1005,"2022-02-08",null,null,50,"مصاريف فطار ( بيد إبراهيم البعار )",null,null,null,null,null,null,null,2500,null,1000,"سلفه12","2022-04-09"]
[null,2505,"2022-02-12",null,1500,null,"عهدة",null,null,null,null,null,null,null,2500]
[null,2465,"9/2/2022+12/2/2022",null,null,40,"ح / رسوم طريق الاسكودا 5468",null,null,null,null,null,null,null,2500]
[null,1595,"9/2/2022+12/2/2022",null,null,870,"بنزين الاسكودا 5468",null,null,null,null,null,null,null,2500]
[null,1560,"2022-02-12",null,null,35,"فاتورة صابون لغسيل الاسكودا 5468",null,null,null,null,null,null,null,2500]
[null,1550,"2022-02-12",null,null,10,"باركنج للسيارة الاسكودا 5468",null,null,null,null,null,null,null,2500]
[null,3550,"2022-02-24",null,2000,null,"عهدة",null,null,null,null,null,null,null,2500]
[null,4100,"2022-02-24",null,550,null,"عهدة",null,null,null,null,null,null,null,2500]
[null,3120,"2022-02-24",null,null,980,"ح / مصاريف خاصة(170 فطار ومشاريب + 750 غداء وحاجه ساقعه+60 مشاريب )",null,null,null,null,null,null,null,2500]
[null,3065,"من21/2/2022 الي 24/2/2022",null,null,55,"ح / رسوم طريق",null,null,null,null,null,null,null,2500]
[null,2720,"2022-02-23",null,null,345,"سولار الدبل 5124",null,null,null,null,null,null,null,2500]
[null,2570,"2022-02-23",null,null,150,"ح / مخالفة طريق",null,null,null,null,null,null,null,2500]
[null,2540,"2022-02-23",null,null,30,"ح / شطف وضبط كاوتش وفلتر الدبل 5124",null,null,null,null,null,null,null,2500]
[null,3040,"2022-03-03",null,500,null,"عهدة",null,null,null,null,null,null,null,2500]
[null,3790,"2022-03-09",null,750,null,"عهدة",null,null,null,null,null,null,null,2500]
[null,4300,"2022-03-10",null,510,null,"عهدة",null,null,null,null,null,null,null,2500]
[null,4080,null,null,null,220,"رسوم طريق","م تشغيل",null,null,"قسم الحركة","المشتري1",null,null,2500]
[null,3580,"2022-02-26",null,null,500,"بنزين95 السياره الكودياك (5468)","المحروقات",null,null,"قسم الحركة","المشتري1",null,null,2500]
[null,3150,"2022-02-28",null,null,430,"بنزين92 السياره الكودياك (5468)","المحروقات",null,null,"قسم الحركة","المشتري1",null,null,2500]
[null,2800,"2022-03-03",null,null,350,"بنزين92 السياره الكودياك (5468)","المحروقات",null,null,"قسم الحركة","المشتري1",null,null,2500]
[null,2410,"2022-03-08",null,null,390,"بنزين95 السياره الكودياك (5468)","المحروقات",null,null,"قسم الحركة","المشتري1",null,null,2500]
[null,2110,"2022-03-08",null,null,300,"بنزين95 السياره الكودياك (5468)","المحروقات",null,null,"قسم الحركة","المشتري1",null,null,2500]
[null,1675,"2022-03-09",null,null,435,"بنزين95 السياره الكودياك (5468)","المحروقات",null,null,"قسم الحركة","المشتري1",null,null,2500]
[null,1215,"2022-03-12",null,null,460,"بنزين95 السياره الكودياك (5468)","المحروقات",null,null,"قسم الحركة","المشتري1",null,null,2500]
[null,945,"2022-03-13",null,null,270,"بنزين95 السياره الكودياك (5468)","المحروقات",null,null,"قسم الحركة","المشتري1",null,null,2500]
[null,940,"2022-03-05",null,null,5,"رسوم دخول المركز الطبي","م تشغيل",null,null,"قسم الحركة","المشتري1",null,null,2500]
[null,925,"2022-03-08",null,null,15,"علبه مناديل فاين السياره الكودياك(5468)","م تشغيل",null,null,"قسم الحركة","المشتري1",null,null,2500]
[null,885,"2022-03-10",null,null,40,"غسيل + صيانه كاوتش السياره الكودياك(5468)","صيانة السيارات",null,null,"قسم الحركة","المشتري1",null,null,2500]
[null,855,"-",null,null,30,"غسيل سياره الضيف(بدون فاتوره)","م عموميه",null,null,"قسم الحركة","المشتري1",null,null,2500]
[null,780,"-",null,null,75,"مصاريف خاصه م/عماد (فطار + مياه) بدون فاتوره","م عموميه",null,null,"قسم الحركة","المشتري1",null,null,2500]
[null,740,"-",null,null,40,"معجون أسنان م/عماد(بدون فاتوره)","م عموميه",null,null,"قسم الحركة","المشتري1",null,null,2500]
[null,730,"-",null,null,10,"علبه ينسون للمكتب(بدون فاتوره)","م عموميه",null,null,"قسم الحركة","المشتري1",null,null,2500]
[null,715,"-",null,null,15,"ح/عامل تحميل كراتين الحلوق القاهره(بدون فاتوره)","م تشغيل",null,null,"قسم الحركة","المشتري1",null,null,2500]
[null,695,"-",null,null,20,"غسيل السياره الكودياك(5468)","م تشغيل",null,null,"قسم الحركة","المشتري1",null,null,2500]
[null,1485,"2022-03-14",null,790,null,"عهدة",null,null,null,null,"المشتري1",null,null,2500]
[null,1415,"16/3/2022+19/3/2022",null,null,70,"رسوم طريق","م تشغيل",null,null,"قسم الحركة","المشتري1",null,null,2500]
[null,480,"16/3/2022+19/3/2022",null,null,935,"ح / عدد 2 فاتورة بنزين الاسكودا5468","المحروقات",null,null,"قسم الحركة","المشتري1",null,null,2500]
[null,470,"2022-03-20",null,null,10,"ح / رسوم طريق","م تشغيل",null,null,"قسم الحركة","المشتري1",null,null,2500]
[null,5,"2022-03-20",null,null,465,"ح / فاتورة بنزين 92 الاسكودا","المحروقات",null,null,"قسم الحركة","المشتري1",null,null,2500]
[null,1500,"2022-03-21",null,1495,null,"عهدة",null,null,null,null,"المشتري1",null,null,2500]
[null,1480,"2022-03-22",null,null,20,"عدد 3 كارته رسوم طريق (القاهره)","م تشغيل",null,null,"قسم الحركة","المشتري1",null,null,2500]
[null,1080,"2022-03-22",null,null,400,"فاتوره بنزين 95 السياره الكودياك (5468)","المحروقات",null,null,"قسم الحركة","المشتري1",null,null,2500]
[null,1075,"2022-03-22",null,null,5,"ايصال دخول مبني الزراعات بالقاهره","م تشغيل",null,null,"قسم الحركة","المشتري1",null,null,2500]
[null,1500,"2022-03-24",null,425,null,"عهدة",null,null,null,null,null,null,null,2500]
[null,1980,"30/03/2022",null,480,null,"عهدة",null,null,null,null,null,null,null,2500]
[null,2680,"2022-04-05",null,700,null,"عهدة",null,null,null,null,null,null,null,2500]
[null,3245,"2022-07-04",null,565,null,"عهدة",null,null,null,null,null,null,null,2500]
[null,3805,"2022-07-04",null,560,null,"عهدة",null,null,null,null,null,null,null,2500]
[null,3805,null,null,null,null,null,null,null,null,null,null,null,null,2500]
[null,3805,null,null,null,null,null,null,null,null,null,null,null,null,2500]
[null,{"$f":"B66+E67-F67","v":3805},null,null,null,null,null,null,null,null,null,null,null,null,2500]
[null,3805,null,null,null,null,null,null,null,null,null,null,null,null,2500]
[null,3805,null,null,null,null,null,null,null,null,null,null,null,null,2500]
[null,3805,null,null,null,null,null,null,null,null,null,null,null,null,2500]
[null,3805,null,null,null,null,null,null,null,null,null,null,null,null,2500]
[null,3805,null,null,null,null,null,null,null,null,null,null,null,null,2500]
[null,3805,null,null,null,null,null,null,null,null,null,null,null,null,2500]
[null,3805,null,null,null,null,null,null,null,null,null,null,null,null,2500]
[null,3805,null,null,null,null,null,null,null,null,null,null,null,null,2500]
[null,3805,null,null,null,null,null,null,null,null,null,null,null,null,2500]
[null,3805,null,null,null,null,null,null,null,null,null,null,null,null,2500]
[null,3805,null,null,null,null,null,null,null,null,null,null,null,null,2500]
[null,3805,null,null,null,null,null,null,null,null,null,null,null,null,2500]
[null,3805,null,null,null,null,null,null,null,null,null,null,null,null,2500]
[null,3805,null,null,null,null,null,null,null,null,null,null,null,null,2500]
[null,3805,null,null,null,null,null,null,null,null,null,null,null,null,2500]
[null,3805,null,null,null,null,null,null,null,null,null,null,null,null,2500]
[null,3805,null,null,null,null,null,null,null,null,null,null,null,null,2500]
[null,3805,null,null,null,null,null,null,null,null,null,null,null,null,2500]
[null,3805,null,null,null,null,null,null,null,null,null,null,null,null,2500]
[null,3805,null,null,null,null,null,null,null,null,null,null,null,null,2500]
[null,3805,null,null,null,null,null,null,null,null,null,null,null,null,2500]
[null,3805,null,null,null,null,null,null,null,null,null,null,null,null,2500]
[null,3805,null,null,null,null,null,null,null,null,null,null,null,null,2500]
[null,3805,null,null,null,null,null,null,null,null,null,null,null,null,2500]
[null,3805,null,null,null,null,null,null,null,null,null,null,null,null,2500]
[null,3805,null,null,null,null,null,null,null,null,null,null,null,null,2500]
[null,3805,null,null,null,null,null,null,null,null,null,null,null,null,2500]
[null,3805,null,null,null,null,null,null,null,null,null,null,null,null,2500]
[null,3805,null,null,null,null,null,null,null,null,null,null,null,null,2500]
[null,3805,null,null,null,null,null,null,null,null,null,null,null,null,2500]
[null,3805,null,null,null,null,null,null,null,null,null,null,null,null,2500]
[null,3805,null,null,null,null,null,null,null,null,null,null,null,null,2500]
[null,3805,null,null,null,null,null,null,null,null,null,null,null,null,2500]
[null,3805,null,null,null,null,null,null,null,null,null,null,null,null,2500]
[null,3805,null,null,null,null,null,null,null,null,null,null,null,null,2500]
[null,3805,null,null,null,null,null,null,null,null,null,null,null,null,2500]
[null,3805,null,null,null,null,null,null,null,null,null,null,null,null,2500]
[null,3805,null,null,null,null,null,null,null,null,null,null,null,null,2500]
[null,3805,null,null,null,null,null,null,null,null,null,null,null,null,2500]
[null,3805,null,null,null,null,null,null,null,null,null,null,null,null,2500]
[null,3805,null,null,null,null,null,null,null,null,null,null,null,null,2500]
[null,3805,null,null,null,null,null,null,null,null,null,null,null,null,2500]
[null,3805,null,null,null,null,null,null,null,null,null,null,null,null,2500]
[null,3805,null,null,null,null,null,null,null,null,null,null,null,null,2500]
[null,3805,null,null,null,null,null,null,null,null,null,null,null,null,2500]
[null,3805,null,null,null,null,null,null,null,null,null,null,null,null,2500]
[null,3805,null,null,null,null,null,null,null,null,null,null,null,null,2500]
[null,3805,null,null,null,null,null,null,null,null,null,null,null,null,2500]
[null,3805,null,null,null,null,null,null,null,null,null,null,null,null,2500]
[null,3805,null,null,null,null,null,null,null,null,null,null,null,null,2500]
[null,3805,null,null,null,null,null,null,null,null,null,null,null,null,2500]
[null,3805,null,null,null,null,null,null,null,null,null,null,null,null,2500]
[null,3805,null,null,null,null,null,null,null,null,null,null,null,null,2500]
[null,3805,null,null,null,null,null,null,null,null,null,null,null,null,2500]
[null,3805,null,null,null,null,null,null,null,null,null,null,null,null,2500]
[null,3805,null,null,null,null,null,null,null,null,null,null,null,null,2500]
[null,3805,null,null,null,null,null,null,null,null,null,null,null,null,2500]
[null,3805,null,null,null,null,null,null,null,null,null,null,null,null,2500]
[null,3805,null,null,null,null,null,null,null,null,null,null,null,null,2500]
[null,3805,null,null,null,null,null,null,null,null,null,null,null,null,2500]
[null,3805,null,null,null,null,null,null,null,null,null,null,null,null,2500]
[null,3805,null,null,null,null,null,null,null,null,null,null,null,null,2500]
[null,3805,null,null,null,null,null,null,null,null,null,null,null,null,2500]
[null,{"$f":"B130+E131-F131","v":3805},null,null,null,null,null,null,null,null,null,null,null,null,2500]
[null,3805,null,null,null,null,null,null,null,null,null,null,null,null,2500]
[null,3805,null,null,null,null,null,null,null,null,null,null,null,null,2500]
[null,3805,null,null,null,null,null,null,null,null,null,null,null,null,2500]
[null,3805,null,null,null,null,null,null,null,null,null,null,null,null,2500]
[null,3805,null,null,null,null,null,null,null,null,null,null,null,null,2500]
[null,3805,null,null,null,null,null,null,null,null,null,null,null,null,2500]
[null,3805,null,null,null,null,null,null,null,null,null,null,null,null,2500]
[null,3805,null,null,null,null,null,null,null,null,null,null,null,null,2500]
[null,3805,null,null,null,null,null,null,null,null,null,null,null,null,2500]
[null,3805,null,null,null,null,null,null,null,null,null,null,null,null,2500]
[null,3805,null,null,null,null,null,null,null,null,null,null,null,null,2500]
[null,3805,null,null,null,null,null,null,null,null,null,null,null,null,2500]
[null,3805,null,null,null,null,null,null,null,null,null,null,null,null,2500]
[null,3805,null,null,null,null,null,null,null,null,null,null,null,null,2500]
[null,3805,null,null,null,null,null,null,null,null,null,null,null,null,2500]
[null,3805,null,null,null,null,null,null,null,null,null,null,null,null,2500]
[null,3805,null,null,null,null,null,null,null,null,null,null,null,null,2500]
[null,3805,null,null,null,null,null,null,null,null,null,null,null,null,2500]
[null,3805,null,null,null,null,null,null,null,null,null,null,null,null,2500]
[null,3805,null,null,null,null,null,null,null,null,null,null,null,null,2500]
[null,3805,null,null,null,null,null,null,null,null,null,null,null,null,2500]
[null,3805,null,null,null,null,null,null,null,null,null,null,null,null,2500]
[null,3805,null,null,null,null,null,null,null,null,null,null,null,null,2500]
[null,3805,null,null,null,null,null,null,null,null,null,null,null,null,2500]
[null,3805,null,null,null,null,null,null,null,null,null,null,null,null,2500]
[null,3805,null,null,null,null,null,null,null,null,null,null,null,null,2500]
[null,3805,null,null,null,null,null,null,null,null,null,null,null,null,2500]
[null,3805,null,null,null,null,null,null,null,null,null,null,null,null,2500]
[null,3805,null,null,null,null,null,null,null,null,null,null,null,null,2500]
[null,3805,null,null,null,null,null,null,null,null,null,null,null,null,2500]
[null,3805,null,null,null,null,null,null,null,null,null,null,null,null,2500]
[null,3805,null,null,null,null,null,null,null,null,null,null,null,null,2500]
[null,3805,null,null,null,null,null,null,null,null,null,null,null,null,2500]
[null,3805,null,null,null,null,null,null,null,null,null,null,null,null,2500]
[null,3805,null,null,null,null,null,null,null,null,null,null,null,null,2500]
[null,3805,null,null,null,null,null,null,null,null,null,null,null,null,2500]
[null,3805,null,null,null,null,null,null,null,null,null,null,null,null,2500]
[null,3805,null,null,null,null,null,null,null,null,null,null,null,null,2500]
[null,3805,null,null,null,null,null,null,null,null,null,null,null,null,2500]
[null,3805,null,null,null,null,null,null,null,null,null,null,null,null,2500]
[null,3805,null,null,null,null,null,null,null,null,null,null,null,null,2500]
[null,3805,null,null,null,null,null,null,null,null,null,null,null,null,2500]
[null,3805,null,null,null,null,null,null,null,null,null,null,null,null,2500]
[null,3805,null,null,null,null,null,null,null,null,null,null,null,null,2500]
[null,3805,null,null,null,null,null,null,null,null,null,null,null,null,2500]
[null,3805,null,null,null,null,null,null,null,null,null,null,null,null,2500]
[null,3805,null,null,null,null,null,null,null,null,null,null,null,null,2500]
[null,3805,null,null,null,null,null,null,null,null,null,null,null,null,2500]
[null,3805,null,null,null,null,null,null,null,null,null,null,null,null,2500]
[null,3805,null,null,null,null,null,null,null,null,null,null,null,null,2500]
[null,3805,null,null,null,null,null,null,null,null,null,null,null,null,2500]
[null,3805,null,null,null,null,null,null,null,null,null,null,null,null,2500]
[null,3805,null,null,null,null,null,null,null,null,null,null,null,null,2500]
[null,3805,null,null,null,null,null,null,null,null,null,null,null,null,2500]
[null,3805,null,null,null,null,null,null,null,null,null,null,null,null,2500]
[null,3805,null,null,null,null,null,null,null,null,null,null,null,null,2500]
[null,3805,null,null,null,null,null,null,null,null,null,null,null,null,2500]
[null,3805,null,null,null,null,null,null,null,null,null,null,null,null,2500]
[null,3805,null,null,null,null,null,null,null,null,null,null,null,null,2500]
[null,3805,null,null,null,null,null,null,null,null,null,null,null,null,2500]
[null,3805,null,null,null,null,null,null,null,null,null,null,null,null,2500]
[null,3805,null,null,null,null,null,null,null,null,null,null,null,null,2500]
[null,3805,null,null,null,null,null,null,null,null,null,null,null,null,2500]
[null,{"$f":"B194+E195-F195","v":3805},null,null,null,null,null,null,null,null,null,null,null,null,2500]
[null,3805,null,null,null,null,null,null,null,null,null,null,null,null,2500]
[null,3805,null,null,null,null,null,null,null,null,null,null,null,null,2500]
[null,3805,null,null,null,null,null,null,null,null,null,null,null,null,2500]
[null,3805,null,null,null,null,null,null,null,null,null,null,null,null,2500]
[null,3805,null,null,null,null,null,null,null,null,null,null,null,null,2500]
[null,3805,null,null,null,null,null,null,null,null,null,null,null,null,2500]
[null,3805,null,null,null,null,null,null,null,null,null,null,null,null,2500]
[null,3805,null,null,null,null,null,null,null,null,null,null,null,null,2500]
[null,3805,null,null,null,null,null,null,null,null,null,null,null,null,2500]
[null,3805,null,null,null,null,null,null,null,null,null,null,null,null,2500]
[null,3805,null,null,null,null,null,null,null,null,null,null,null,null,2500]
[null,3805,null,null,null,null,null,null,null,null,null,null,null,null,2500]
[null,3805,null,null,null,null,null,null,null,null,null,null,null,null,2500]
[null,3805,null,null,null,null,null,null,null,null,null,null,null,null,2500]
[null,3805,null,null,null,null,null,null,null,null,null,null,null,null,2500]
[null,3805,null,null,null,null,null,null,null,null,null,null,null,null,2500]
[null,3805,null,null,null,null,null,null,null,null,null,null,null,null,2500]
[null,3805,null,null,null,null,null,null,null,null,null,null,null,null,2500]
[null,3805,null,null,null,null,null,null,null,null,null,null,null,null,2500]
[null,3805,null,null,null,null,null,null,null,null,null,null,null,null,2500]
[null,3805,null,null,null,null,null,null,null,null,null,null,null,null,2500]
[null,3805,null,null,null,null,null,null,null,null,null,null,null,null,2500]
[null,3805,null,null,null,null,null,null,null,null,null,null,null,null,2500]
[null,3805,null,null,null,null,null,null,null,null,null,null,null,null,2500]
[null,3805,null,null,null,null,null,null,null,null,null,null,null,null,2500]
[null,3805,null,null,null,null,null,null,null,null,null,null,null,null,2500]
[null,3805,null,null,null,null,null,null,null,null,null,null,null,null,2500]
[null,3805,null,null,null,null,null,null,null,null,null,null,null,null,2500]
[null,3805,null,null,null,null,null,null,null,null,null,null,null,null,2500]
[null,3805,null,null,null,null,null,null,null,null,null,null,null,null,2500]
[null,3805,null,null,null,null,null,null,null,null,null,null,null,null,2500]
[null,3805,null,null,null,null,null,null,null,null,null,null,null,null,2500]
[null,3805,null,null,null,null,null,null,null,null,null,null,null,null,2500]
[null,3805,null,null,null,null,null,null,null,null,null,null,null,null,2500]
[null,3805,null,null,null,null,null,null,null,null,null,null,null,null,2500]
[null,3805,null,null,null,null,null,null,null,null,null,null,null,null,2500]
[null,3805,null,null,null,null,null,null,null,null,null,null,null,null,2500]
[null,3805,null,null,null,null,null,null,null,null,null,null,null,null,2500]
[null,3805,null,null,null,null,null,null,null,null,null,null,null,null,2500]
[null,3805,null,null,null,null,null,null,null,null,null,null,null,null,2500]
[null,3805,null,null,null,null,null,null,null,null,null,null,null,null,2500]
[null,3805,null,null,null,null,null,null,null,null,null,null,null,null,2500]
[null,3805,null,null,null,null,null,null,null,null,null,null,null,null,2500]
[null,3805,null,null,null,null,null,null,null,null,null,null,null,null,2500]
[null,3805,null,null,null,null,null,null,null,null,null,null,null,null,2500]
[null,3805,null,null,null,null,null,null,null,null,null,null,null,null,2500]
[null,3805,null,null,null,null,null,null,null,null,null,null,null,null,2500]
[null,3805,null,null,null,null,null,null,null,null,null,null,null,null,2500]
[null,3805,null,null,null,null,null,null,null,null,null,null,null,null,2500]
[null,3805,null,null,null,null,null,null,null,null,null,null,null,null,2500]
[null,3805,null,null,null,null,null,null,null,null,null,null,null,null,2500]
[null,3805,null,null,null,null,null,null,null,null,null,null,null,null,2500]
[null,3805,null,null,null,null,null,null,null,null,null,null,null,null,2500]
[null,3805,null,null,null,null,null,null,null,null,null,null,null,null,2500]
[null,3805,null,null,null,null,null,null,null,null,null,null,null,null,2500]
[null,3805,null,null,null,null,null,null,null,null,null,null,null,null,2500]
[null,3805,null,null,null,null,null,null,null,null,null,null,null,null,2500]
[null,3805,null,null,null,null,null,null,null,null,null,null,null,null,2500]
[null,3805,null,null,null,null,null,null,null,null,null,null,null,null,2500]
[null,3805,null,null,null,null,null,null,null,null,null,null,null,null,2500]
[null,3805,null,null,null,null,null,null,null,null,null,null,null,null,2500]
[null,3805,null,null,null,null,null,null,null,null,null,null,null,null,2500]
[null,3805,null,null,null,null,null,null,null,null,null,null,null,null,2500]
[null,{"$f":"B258+E259-F259","v":3805},null,null,null,null,null,null,null,null,null,null,null,null,2500]
[null,3805,null,null,null,null,null,null,null,null,null,null,null,null,2500]
[null,3805,null,null,null,null,null,null,null,null,null,null,null,null,2500]
[null,3805,null,null,null,null,null,null,null,null,null,null,null,null,2500]
[null,3805,null,null,null,null,null,null,null,null,null,null,null,null,2500]
[null,3805,null,null,null,null,null,null,null,null,null,null,null,null,2500]
[null,3805,null,null,null,null,null,null,null,null,null,null,null,null,2500]
[null,3805,null,null,null,null,null,null,null,null,null,null,null,null,2500]
[null,3805,null,null,null,null,null,null,null,null,null,null,null,null,2500]
[null,3805,null,null,null,null,null,null,null,null,null,null,null,null,2500]
[null,3805,null,null,null,null,null,null,null,null,null,null,null,null,2500]
[null,3805,null,null,null,null,null,null,null,null,null,null,null,null,2500]
[null,3805,null,null,null,null,null,null,null,null,null,null,null,null,2500]
[null,3805,null,null,null,null,null,null,null,null,null,null,null,null,2500]
[null,3805,null,null,null,null,null,null,null,null,null,null,null,null,2500]
[null,3805,null,null,null,null,null,null,null,null,null,null,null,null,2500]
[null,3805,null,null,null,null,null,null,null,null,null,null,null,null,2500]
[null,3805,null,null,null,null,null,null,null,null,null,null,null,null,2500]
[null,3805,null,null,null,null,null,null,null,null,null,null,null,null,2500]
[null,3805]
[null,3805]
[null,3805]
[null,3805]
[null,3805]
[null,3805]
[null,3805]
[null,3805]
[null,3805]
[null,3805]
[null,3805]
[null,3805]
[null,3805]
[null,3805]
[null,3805]
[null,3805]
[null,3805]
[null,3805]
[null,3805]
[null,3805]
[null,3805]
[null,3805]
[null,3805]
[null,3805]
[null,3805]
[null,3805]
[null,3805]
[null,3805]
[null,3805]
[null,3805]
[null,3805]
[null,3805]
[null,3805]
[null,3805]
[null,3805]
[null,3805]
[null,3805]
[null,3805]
[null,3805]
[null,3805]
[null,3805]
[null,3805]
[null,3805]
[null,3805]
[null,3805]
[null,{"$f":"B322+E323-F323","v":3805}]
[null,3805]
[null,3805]
[null,3805]
[null,3805]
[null,3805]
[null,3805]
[null,3805]
[null,3805]
[null,3805]
[null,3805]
[null,3805]
[null,3805]
[null,3805]
[null,3805]
[null,3805]
[null,3805]
[null,3805]
[null,3805]
[null,3805]
[null,3805]
[null,3805]
[null,3805]
[null,3805]
[null,3805]
[null,3805]
[null,3805]
[null,3805]
[null,3805]
[null,3805]
[null,3805]
[null,3805]
[null,3805]
[null,3805]
[null,3805]
[null,3805]
[null,3805]
[null,3805]
[null,3805]
[null,3805]
[null,3805]
[null,3805]
[null,3805]
[null,3805]
[null,3805]
[null,3805]
[null,3805]
[null,3805]
[null,3805]
[null,3805]
[null,3805]
[null,3805]
[null,3805]
[null,3805]
[null,3805]
[null,3805]
[null,3805]
[null,3805]
[null,3805]
[null,3805]
[null,3805]
[null,3805]
[null,3805]
[null,3805]
[null,{"$f":"B386+E387-F387","v":3805}]
[null,3805]
[null,3805]
[null,3805]
[null,3805]
[null,3805]
[null,3805]
[null,3805]
[null,3805]
[null,3805]
[null,3805]
[null,3805]
[null,3805]
[null,3805]
[null,3805]
[null,3805]
[null,3805]
[null,3805]
[null,3805]
[null,3805]
[null,3805]
[null,3805]
[null,3805]
[null,3805]
[null,3805]
[null,3805]
[null,3805]
[null,3805]
[null,3805]
[null,3805]
[null,3805]
[null,3805]
[null,3805]
[null,3805]
[null,3805]
[null,3805]
[null,3805]
[null,3805]
[null,3805]
[null,3805]
[null,3805]
[null,3805]
[null,3805]
[null,3805]
[null,3805]

{"sheet":"Sheet4","index":4,"n_rows":431,"n_cols":19,"rows_kept":431,"cut":false,"hidden":false,"merged":[]}
["الانتقال","رصيـــــــــد","التاريــــــــــــــــخ ","رقم الايصال","عهده","مصروفـــــــــــــات","بيـــــــــــــان","التوجيه","كود التحليل","التحليل","الموقع","صرفت / استلمت بواسطة","ملاحظات","الانتقال","رصيـــــــــد","تسوية","سلفه","بيـــــــــــــان","التاريــــــــــــــــخ "]
[null,null,null,null,null,null,"تصفية بتاريخ 25/5/2019",null,null,null,null,null,null,null,null,null,null,"سلف"]
[null,{"$f":"B2+E3-F3","v":300},"2022-01-01",null,300,null,"عهدة",null,null,null,null,null,null,null,500,null,500,"سلفه1"]
[null,1300,"2022-01-11",null,1000,null,"عهدة",null,null,null,null,null,null,null,1500,null,1000,"سلفه2","2021-12-19"]
[null,1800,"2022-01-17",null,500,null,"عهدة",null,null,null,null,null,null,null,1970,null,470,"سلفه3"]
[null,2385,"2022-01-18",null,585,null,"عهدة",null,null,null,null,null,null,null,1985,null,15,"سلفه4"]
[null,2080,"2022-01-09",null,null,305,"ح / 55 رسوم طريق + 250 بنزين الكرولا 5238",5238,"قسم الحركة",null,null,null,null,null,-500,2485,null,"خصمت من مرتب شهر12"]
[null,2010,"من 12/1/2022 الي 17/1/2022",null,null,70,"رسوم طريق","رسوم طريق","قسم الحركة",null,null,null,null,null,0,null,500,"سلفه5","2022-01-01"]
[null,1075,"من 12/1/2022 الي 17/1/2022",null,null,935,"محروقات السيارة الاسكودا البيضاء","محروقات","قسم الحركة",null,null,null,null,null,0,0,0,"سلفه6"]
[null,995,"2022-01-17",null,null,80,"غسيل السيارة الاسكودا البيضاء","غسيل","قسم الحركة",null,null,null,null,null,470,null,470,"سلفه7","2022-02-02"]
[null,1995,"2022-01-31",null,1000,null,"عهده إبراهيم البعار بيد ا0محمد",null,null,null,null,null,null,null,0,470,0,"خصمت من مرتب شهر01 / 2022"]
[null,1465,"2022-01-31",null,null,530,"ح / فاتورة خشب كونتر طبقات 7 م  + 70 نقل للجلاء",null,null,null,null,null,null,null,500,null,500,"سلفه8","2022-02-08"]
[null,995,null,null,null,470,"باقي 1000 عهدة فاتورة الخشب توضع سلفه",null,null,null,null,null,null,null,1000,null,500,"سلفه9","2022-05-19"]
[null,1595,"2022-02-09",null,600,null,"عهدة",null,null,null,null,null,null,null,0,1000,0,"خصمت من مرتب شهر02 / 2022"]
[null,1555,"2022-02-08",null,null,40,"ح / رسوم طريق الاسكودا 5468",null,null,null,null,null,null,null,1000,null,1000,"سلفه10","2022-03-14"]
[null,1055,"2022-02-08",null,null,500,"بنزين الاسكودا 5468",null,null,null,null,null,null,null,1500,null,500,"سلفه11","2022-03-26"]
[null,1005,"2022-02-08",null,null,50,"مصاريف فطار ( بيد إبراهيم البعار )",null,null,null,null,null,null,null,2500,null,1000,"سلفه12","2022-04-09"]
[null,2505,"2022-02-12",null,1500,null,"عهدة",null,null,null,null,null,null,null,2500]
[null,2465,"9/2/2022+12/2/2022",null,null,40,"ح / رسوم طريق الاسكودا 5468",null,null,null,null,null,null,null,2500]
[null,1595,"9/2/2022+12/2/2022",null,null,870,"بنزين الاسكودا 5468",null,null,null,null,null,null,null,2500]
[null,1560,"2022-02-12",null,null,35,"فاتورة صابون لغسيل الاسكودا 5468",null,null,null,null,null,null,null,2500]
[null,1550,"2022-02-12",null,null,10,"باركنج للسيارة الاسكودا 5468",null,null,null,null,null,null,null,2500]
[null,3550,"2022-02-24",null,2000,null,"عهدة",null,null,null,null,null,null,null,2500]
[null,4100,"2022-02-24",null,550,null,"عهدة",null,null,null,null,null,null,null,2500]
[null,3120,"2022-02-24",null,null,980,"ح / مصاريف خاصة(170 فطار ومشاريب + 750 غداء وحاجه ساقعه+60 مشاريب )",null,null,null,null,null,null,null,2500]
[null,3065,"من21/2/2022 الي 24/2/2022",null,null,55,"ح / رسوم طريق",null,null,null,null,null,null,null,2500]
[null,2720,"2022-02-23",null,null,345,"سولار الدبل 5124",null,null,null,null,null,null,null,2500]
[null,2570,"2022-02-23",null,null,150,"ح / مخالفة طريق",null,null,null,null,null,null,null,2500]
[null,2540,"2022-02-23",null,null,30,"ح / شطف وضبط كاوتش وفلتر الدبل 5124",null,null,null,null,null,null,null,2500]
[null,3040,"2022-03-03",null,500,null,"عهدة",null,null,null,null,null,null,null,2500]
[null,3790,"2022-03-09",null,750,null,"عهدة",null,null,null,null,null,null,null,2500]
[null,4300,"2022-03-10",null,510,null,"عهدة",null,null,null,null,null,null,null,2500]
[null,4080,null,null,null,220,"رسوم طريق","م تشغيل",null,null,"قسم الحركة","المشتري1",null,null,2500]
[null,3580,"2022-02-26",null,null,500,"بنزين95 السياره الكودياك (5468)","المحروقات",null,null,"قسم الحركة","المشتري1",null,null,2500]
[null,3150,"2022-02-28",null,null,430,"بنزين92 السياره الكودياك (5468)","المحروقات",null,null,"قسم الحركة","المشتري1",null,null,2500]
[null,2800,"2022-03-03",null,null,350,"بنزين92 السياره الكودياك (5468)","المحروقات",null,null,"قسم الحركة","المشتري1",null,null,2500]
[null,2410,"2022-03-08",null,null,390,"بنزين95 السياره الكودياك (5468)","المحروقات",null,null,"قسم الحركة","المشتري1",null,null,2500]
[null,2110,"2022-03-08",null,null,300,"بنزين95 السياره الكودياك (5468)","المحروقات",null,null,"قسم الحركة","المشتري1",null,null,2500]
[null,1675,"2022-03-09",null,null,435,"بنزين95 السياره الكودياك (5468)","المحروقات",null,null,"قسم الحركة","المشتري1",null,null,2500]
[null,1215,"2022-03-12",null,null,460,"بنزين95 السياره الكودياك (5468)","المحروقات",null,null,"قسم الحركة","المشتري1",null,null,2500]
[null,945,"2022-03-13",null,null,270,"بنزين95 السياره الكودياك (5468)","المحروقات",null,null,"قسم الحركة","المشتري1",null,null,2500]
[null,940,"2022-03-05",null,null,5,"رسوم دخول المركز الطبي","م تشغيل",null,null,"قسم الحركة","المشتري1",null,null,2500]
[null,925,"2022-03-08",null,null,15,"علبه مناديل فاين السياره الكودياك(5468)","م تشغيل",null,null,"قسم الحركة","المشتري1",null,null,2500]
[null,885,"2022-03-10",null,null,40,"غسيل + صيانه كاوتش السياره الكودياك(5468)","صيانة السيارات",null,null,"قسم الحركة","المشتري1",null,null,2500]
[null,855,"-",null,null,30,"غسيل سياره الضيف(بدون فاتوره)","م عموميه",null,null,"قسم الحركة","المشتري1",null,null,2500]
[null,780,"-",null,null,75,"مصاريف خاصه م/عماد (فطار + مياه) بدون فاتوره","م عموميه",null,null,"قسم الحركة","المشتري1",null,null,2500]
[null,740,"-",null,null,40,"معجون أسنان م/عماد(بدون فاتوره)","م عموميه",null,null,"قسم الحركة","المشتري1",null,null,2500]
[null,730,"-",null,null,10,"علبه ينسون للمكتب(بدون فاتوره)","م عموميه",null,null,"قسم الحركة","المشتري1",null,null,2500]
[null,715,"-",null,null,15,"ح/عامل تحميل كراتين الحلوق القاهره(بدون فاتوره)","م تشغيل",null,null,"قسم الحركة","المشتري1",null,null,2500]
[null,695,"-",null,null,20,"غسيل السياره الكودياك(5468)","م تشغيل",null,null,"قسم الحركة","المشتري1",null,null,2500]
[null,1485,"2022-03-14",null,790,null,"عهدة",null,null,null,null,"المشتري1",null,null,2500]
[null,1415,"16/3/2022+19/3/2022",null,null,70,"رسوم طريق","م تشغيل",null,null,"قسم الحركة","المشتري1",null,null,2500]
[null,480,"16/3/2022+19/3/2022",null,null,935,"ح / عدد 2 فاتورة بنزين الاسكودا5468","المحروقات",null,null,"قسم الحركة","المشتري1",null,null,2500]
[null,470,"2022-03-20",null,null,10,"ح / رسوم طريق","م تشغيل",null,null,"قسم الحركة","المشتري1",null,null,2500]
[null,5,"2022-03-20",null,null,465,"ح / فاتورة بنزين 92 الاسكودا","المحروقات",null,null,"قسم الحركة","المشتري1",null,null,2500]
[null,1500,"2022-03-21",null,1495,null,"عهدة",null,null,null,null,"المشتري1",null,null,2500]
[null,1480,"2022-03-22",null,null,20,"عدد 3 كارته رسوم طريق (القاهره)","م تشغيل",null,null,"قسم الحركة","المشتري1",null,null,2500]
[null,1080,"2022-03-22",null,null,400,"فاتوره بنزين 95 السياره الكودياك (5468)","المحروقات",null,null,"قسم الحركة","المشتري1",null,null,2500]
[null,1075,"2022-03-22",null,null,5,"ايصال دخول مبني الزراعات بالقاهره","م تشغيل",null,null,"قسم الحركة","المشتري1",null,null,2500]
[null,1500,"2022-03-24",null,425,null,"عهدة",null,null,null,null,null,null,null,2500]
[null,1980,"30/03/2022",null,480,null,"عهدة",null,null,null,null,null,null,null,2500]
[null,2680,"2022-04-05",null,700,null,"عهدة",null,null,null,null,null,null,null,2500]
[null,3245,"2022-07-04",null,565,null,"عهدة",null,null,null,null,null,null,null,2500]
[null,3805,"2022-07-04",null,560,null,"عهدة",null,null,null,null,null,null,null,2500]
[null,3805,null,null,null,null,null,null,null,null,null,null,null,null,2500]
[null,3805,null,null,null,null,null,null,null,null,null,null,null,null,2500]
[null,{"$f":"B66+E67-F67","v":3805},null,null,null,null,null,null,null,null,null,null,null,null,2500]
[null,3805,null,null,null,null,null,null,null,null,null,null,null,null,2500]
[null,3805,null,null,null,null,null,null,null,null,null,null,null,null,2500]
[null,3805,null,null,null,null,null,null,null,null,null,null,null,null,2500]
[null,3805,null,null,null,null,null,null,null,null,null,null,null,null,2500]
[null,3805,null,null,null,null,null,null,null,null,null,null,null,null,2500]
[null,3805,null,null,null,null,null,null,null,null,null,null,null,null,2500]
[null,3805,null,null,null,null,null,null,null,null,null,null,null,null,2500]
[null,3805,null,null,null,null,null,null,null,null,null,null,null,null,2500]
[null,3805,null,null,null,null,null,null,null,null,null,null,null,null,2500]
[null,3805,null,null,null,null,null,null,null,null,null,null,null,null,2500]
[null,3805,null,null,null,null,null,null,null,null,null,null,null,null,2500]
[null,3805,null,null,null,null,null,null,null,null,null,null,null,null,2500]
[null,3805,null,null,null,null,null,null,null,null,null,null,null,null,2500]
[null,3805,null,null,null,null,null,null,null,null,null,null,null,null,2500]
[null,3805,null,null,null,null,null,null,null,null,null,null,null,null,2500]
[null,3805,null,null,null,null,null,null,null,null,null,null,null,null,2500]
[null,3805,null,null,null,null,null,null,null,null,null,null,null,null,2500]
[null,3805,null,null,null,null,null,null,null,null,null,null,null,null,2500]
[null,3805,null,null,null,null,null,null,null,null,null,null,null,null,2500]
[null,3805,null,null,null,null,null,null,null,null,null,null,null,null,2500]
[null,3805,null,null,null,null,null,null,null,null,null,null,null,null,2500]
[null,3805,null,null,null,null,null,null,null,null,null,null,null,null,2500]
[null,3805,null,null,null,null,null,null,null,null,null,null,null,null,2500]
[null,3805,null,null,null,null,null,null,null,null,null,null,null,null,2500]
[null,3805,null,null,null,null,null,null,null,null,null,null,null,null,2500]
[null,3805,null,null,null,null,null,null,null,null,null,null,null,null,2500]
[null,3805,null,null,null,null,null,null,null,null,null,null,null,null,2500]
[null,3805,null,null,null,null,null,null,null,null,null,null,null,null,2500]
[null,3805,null,null,null,null,null,null,null,null,null,null,null,null,2500]
[null,3805,null,null,null,null,null,null,null,null,null,null,null,null,2500]
[null,3805,null,null,null,null,null,null,null,null,null,null,null,null,2500]
[null,3805,null,null,null,null,null,null,null,null,null,null,null,null,2500]
[null,3805,null,null,null,null,null,null,null,null,null,null,null,null,2500]
[null,3805,null,null,null,null,null,null,null,null,null,null,null,null,2500]
[null,3805,null,null,null,null,null,null,null,null,null,null,null,null,2500]
[null,3805,null,null,null,null,null,null,null,null,null,null,null,null,2500]
[null,3805,null,null,null,null,null,null,null,null,null,null,null,null,2500]
[null,3805,null,null,null,null,null,null,null,null,null,null,null,null,2500]
[null,3805,null,null,null,null,null,null,null,null,null,null,null,null,2500]
[null,3805,null,null,null,null,null,null,null,null,null,null,null,null,2500]
[null,3805,null,null,null,null,null,null,null,null,null,null,null,null,2500]
[null,3805,null,null,null,null,null,null,null,null,null,null,null,null,2500]
[null,3805,null,null,null,null,null,null,null,null,null,null,null,null,2500]
[null,3805,null,null,null,null,null,null,null,null,null,null,null,null,2500]
[null,3805,null,null,null,null,null,null,null,null,null,null,null,null,2500]
[null,3805,null,null,null,null,null,null,null,null,null,null,null,null,2500]
[null,3805,null,null,null,null,null,null,null,null,null,null,null,null,2500]
[null,3805,null,null,null,null,null,null,null,null,null,null,null,null,2500]
[null,3805,null,null,null,null,null,null,null,null,null,null,null,null,2500]
[null,3805,null,null,null,null,null,null,null,null,null,null,null,null,2500]
[null,3805,null,null,null,null,null,null,null,null,null,null,null,null,2500]
[null,3805,null,null,null,null,null,null,null,null,null,null,null,null,2500]
[null,3805,null,null,null,null,null,null,null,null,null,null,null,null,2500]
[null,3805,null,null,null,null,null,null,null,null,null,null,null,null,2500]
[null,3805,null,null,null,null,null,null,null,null,null,null,null,null,2500]
[null,3805,null,null,null,null,null,null,null,null,null,null,null,null,2500]
[null,3805,null,null,null,null,null,null,null,null,null,null,null,null,2500]
[null,3805,null,null,null,null,null,null,null,null,null,null,null,null,2500]
[null,3805,null,null,null,null,null,null,null,null,null,null,null,null,2500]
[null,3805,null,null,null,null,null,null,null,null,null,null,null,null,2500]
[null,3805,null,null,null,null,null,null,null,null,null,null,null,null,2500]
[null,3805,null,null,null,null,null,null,null,null,null,null,null,null,2500]
[null,3805,null,null,null,null,null,null,null,null,null,null,null,null,2500]
[null,{"$f":"B130+E131-F131","v":3805},null,null,null,null,null,null,null,null,null,null,null,null,2500]
[null,3805,null,null,null,null,null,null,null,null,null,null,null,null,2500]
[null,3805,null,null,null,null,null,null,null,null,null,null,null,null,2500]
[null,3805,null,null,null,null,null,null,null,null,null,null,null,null,2500]
[null,3805,null,null,null,null,null,null,null,null,null,null,null,null,2500]
[null,3805,null,null,null,null,null,null,null,null,null,null,null,null,2500]
[null,3805,null,null,null,null,null,null,null,null,null,null,null,null,2500]
[null,3805,null,null,null,null,null,null,null,null,null,null,null,null,2500]
[null,3805,null,null,null,null,null,null,null,null,null,null,null,null,2500]
[null,3805,null,null,null,null,null,null,null,null,null,null,null,null,2500]
[null,3805,null,null,null,null,null,null,null,null,null,null,null,null,2500]
[null,3805,null,null,null,null,null,null,null,null,null,null,null,null,2500]
[null,3805,null,null,null,null,null,null,null,null,null,null,null,null,2500]
[null,3805,null,null,null,null,null,null,null,null,null,null,null,null,2500]
[null,3805,null,null,null,null,null,null,null,null,null,null,null,null,2500]
[null,3805,null,null,null,null,null,null,null,null,null,null,null,null,2500]
[null,3805,null,null,null,null,null,null,null,null,null,null,null,null,2500]
[null,3805,null,null,null,null,null,null,null,null,null,null,null,null,2500]
[null,3805,null,null,null,null,null,null,null,null,null,null,null,null,2500]
[null,3805,null,null,null,null,null,null,null,null,null,null,null,null,2500]
[null,3805,null,null,null,null,null,null,null,null,null,null,null,null,2500]
[null,3805,null,null,null,null,null,null,null,null,null,null,null,null,2500]
[null,3805,null,null,null,null,null,null,null,null,null,null,null,null,2500]
[null,3805,null,null,null,null,null,null,null,null,null,null,null,null,2500]
[null,3805,null,null,null,null,null,null,null,null,null,null,null,null,2500]
[null,3805,null,null,null,null,null,null,null,null,null,null,null,null,2500]
[null,3805,null,null,null,null,null,null,null,null,null,null,null,null,2500]
[null,3805,null,null,null,null,null,null,null,null,null,null,null,null,2500]
[null,3805,null,null,null,null,null,null,null,null,null,null,null,null,2500]
[null,3805,null,null,null,null,null,null,null,null,null,null,null,null,2500]
[null,3805,null,null,null,null,null,null,null,null,null,null,null,null,2500]
[null,3805,null,null,null,null,null,null,null,null,null,null,null,null,2500]
[null,3805,null,null,null,null,null,null,null,null,null,null,null,null,2500]
[null,3805,null,null,null,null,null,null,null,null,null,null,null,null,2500]
[null,3805,null,null,null,null,null,null,null,null,null,null,null,null,2500]
[null,3805,null,null,null,null,null,null,null,null,null,null,null,null,2500]
[null,3805,null,null,null,null,null,null,null,null,null,null,null,null,2500]
[null,3805,null,null,null,null,null,null,null,null,null,null,null,null,2500]
[null,3805,null,null,null,null,null,null,null,null,null,null,null,null,2500]
[null,3805,null,null,null,null,null,null,null,null,null,null,null,null,2500]
[null,3805,null,null,null,null,null,null,null,null,null,null,null,null,2500]
[null,3805,null,null,null,null,null,null,null,null,null,null,null,null,2500]
[null,3805,null,null,null,null,null,null,null,null,null,null,null,null,2500]
[null,3805,null,null,null,null,null,null,null,null,null,null,null,null,2500]
[null,3805,null,null,null,null,null,null,null,null,null,null,null,null,2500]
[null,3805,null,null,null,null,null,null,null,null,null,null,null,null,2500]
[null,3805,null,null,null,null,null,null,null,null,null,null,null,null,2500]
[null,3805,null,null,null,null,null,null,null,null,null,null,null,null,2500]
[null,3805,null,null,null,null,null,null,null,null,null,null,null,null,2500]
[null,3805,null,null,null,null,null,null,null,null,null,null,null,null,2500]
[null,3805,null,null,null,null,null,null,null,null,null,null,null,null,2500]
[null,3805,null,null,null,null,null,null,null,null,null,null,null,null,2500]
[null,3805,null,null,null,null,null,null,null,null,null,null,null,null,2500]
[null,3805,null,null,null,null,null,null,null,null,null,null,null,null,2500]
[null,3805,null,null,null,null,null,null,null,null,null,null,null,null,2500]
[null,3805,null,null,null,null,null,null,null,null,null,null,null,null,2500]
[null,3805,null,null,null,null,null,null,null,null,null,null,null,null,2500]
[null,3805,null,null,null,null,null,null,null,null,null,null,null,null,2500]
[null,3805,null,null,null,null,null,null,null,null,null,null,null,null,2500]
[null,3805,null,null,null,null,null,null,null,null,null,null,null,null,2500]
[null,3805,null,null,null,null,null,null,null,null,null,null,null,null,2500]
[null,3805,null,null,null,null,null,null,null,null,null,null,null,null,2500]
[null,3805,null,null,null,null,null,null,null,null,null,null,null,null,2500]
[null,3805,null,null,null,null,null,null,null,null,null,null,null,null,2500]
[null,{"$f":"B194+E195-F195","v":3805},null,null,null,null,null,null,null,null,null,null,null,null,2500]
[null,3805,null,null,null,null,null,null,null,null,null,null,null,null,2500]
[null,3805,null,null,null,null,null,null,null,null,null,null,null,null,2500]
[null,3805,null,null,null,null,null,null,null,null,null,null,null,null,2500]
[null,3805,null,null,null,null,null,null,null,null,null,null,null,null,2500]
[null,3805,null,null,null,null,null,null,null,null,null,null,null,null,2500]
[null,3805,null,null,null,null,null,null,null,null,null,null,null,null,2500]
[null,3805,null,null,null,null,null,null,null,null,null,null,null,null,2500]
[null,3805,null,null,null,null,null,null,null,null,null,null,null,null,2500]
[null,3805,null,null,null,null,null,null,null,null,null,null,null,null,2500]
[null,3805,null,null,null,null,null,null,null,null,null,null,null,null,2500]
[null,3805,null,null,null,null,null,null,null,null,null,null,null,null,2500]
[null,3805,null,null,null,null,null,null,null,null,null,null,null,null,2500]
[null,3805,null,null,null,null,null,null,null,null,null,null,null,null,2500]
[null,3805,null,null,null,null,null,null,null,null,null,null,null,null,2500]
[null,3805,null,null,null,null,null,null,null,null,null,null,null,null,2500]
[null,3805,null,null,null,null,null,null,null,null,null,null,null,null,2500]
[null,3805,null,null,null,null,null,null,null,null,null,null,null,null,2500]
[null,3805,null,null,null,null,null,null,null,null,null,null,null,null,2500]
[null,3805,null,null,null,null,null,null,null,null,null,null,null,null,2500]
[null,3805,null,null,null,null,null,null,null,null,null,null,null,null,2500]
[null,3805,null,null,null,null,null,null,null,null,null,null,null,null,2500]
[null,3805,null,null,null,null,null,null,null,null,null,null,null,null,2500]
[null,3805,null,null,null,null,null,null,null,null,null,null,null,null,2500]
[null,3805,null,null,null,null,null,null,null,null,null,null,null,null,2500]
[null,3805,null,null,null,null,null,null,null,null,null,null,null,null,2500]
[null,3805,null,null,null,null,null,null,null,null,null,null,null,null,2500]
[null,3805,null,null,null,null,null,null,null,null,null,null,null,null,2500]
[null,3805,null,null,null,null,null,null,null,null,null,null,null,null,2500]
[null,3805,null,null,null,null,null,null,null,null,null,null,null,null,2500]
[null,3805,null,null,null,null,null,null,null,null,null,null,null,null,2500]
[null,3805,null,null,null,null,null,null,null,null,null,null,null,null,2500]
[null,3805,null,null,null,null,null,null,null,null,null,null,null,null,2500]
[null,3805,null,null,null,null,null,null,null,null,null,null,null,null,2500]
[null,3805,null,null,null,null,null,null,null,null,null,null,null,null,2500]
[null,3805,null,null,null,null,null,null,null,null,null,null,null,null,2500]
[null,3805,null,null,null,null,null,null,null,null,null,null,null,null,2500]
[null,3805,null,null,null,null,null,null,null,null,null,null,null,null,2500]
[null,3805,null,null,null,null,null,null,null,null,null,null,null,null,2500]
[null,3805,null,null,null,null,null,null,null,null,null,null,null,null,2500]
[null,3805,null,null,null,null,null,null,null,null,null,null,null,null,2500]
[null,3805,null,null,null,null,null,null,null,null,null,null,null,null,2500]
[null,3805,null,null,null,null,null,null,null,null,null,null,null,null,2500]
[null,3805,null,null,null,null,null,null,null,null,null,null,null,null,2500]
[null,3805,null,null,null,null,null,null,null,null,null,null,null,null,2500]
[null,3805,null,null,null,null,null,null,null,null,null,null,null,null,2500]
[null,3805,null,null,null,null,null,null,null,null,null,null,null,null,2500]
[null,3805,null,null,null,null,null,null,null,null,null,null,null,null,2500]
[null,3805,null,null,null,null,null,null,null,null,null,null,null,null,2500]
[null,3805,null,null,null,null,null,null,null,null,null,null,null,null,2500]
[null,3805,null,null,null,null,null,null,null,null,null,null,null,null,2500]
[null,3805,null,null,null,null,null,null,null,null,null,null,null,null,2500]
[null,3805,null,null,null,null,null,null,null,null,null,null,null,null,2500]
[null,3805,null,null,null,null,null,null,null,null,null,null,null,null,2500]
[null,3805,null,null,null,null,null,null,null,null,null,null,null,null,2500]
[null,3805,null,null,null,null,null,null,null,null,null,null,null,null,2500]
[null,3805,null,null,null,null,null,null,null,null,null,null,null,null,2500]
[null,3805,null,null,null,null,null,null,null,null,null,null,null,null,2500]
[null,3805,null,null,null,null,null,null,null,null,null,null,null,null,2500]
[null,3805,null,null,null,null,null,null,null,null,null,null,null,null,2500]
[null,3805,null,null,null,null,null,null,null,null,null,null,null,null,2500]
[null,3805,null,null,null,null,null,null,null,null,null,null,null,null,2500]
[null,3805,null,null,null,null,null,null,null,null,null,null,null,null,2500]
[null,3805,null,null,null,null,null,null,null,null,null,null,null,null,2500]
[null,{"$f":"B258+E259-F259","v":3805},null,null,null,null,null,null,null,null,null,null,null,null,2500]
[null,3805,null,null,null,null,null,null,null,null,null,null,null,null,2500]
[null,3805,null,null,null,null,null,null,null,null,null,null,null,null,2500]
[null,3805,null,null,null,null,null,null,null,null,null,null,null,null,2500]
[null,3805,null,null,null,null,null,null,null,null,null,null,null,null,2500]
[null,3805,null,null,null,null,null,null,null,null,null,null,null,null,2500]
[null,3805,null,null,null,null,null,null,null,null,null,null,null,null,2500]
[null,3805,null,null,null,null,null,null,null,null,null,null,null,null,2500]
[null,3805,null,null,null,null,null,null,null,null,null,null,null,null,2500]
[null,3805,null,null,null,null,null,null,null,null,null,null,null,null,2500]
[null,3805,null,null,null,null,null,null,null,null,null,null,null,null,2500]
[null,3805,null,null,null,null,null,null,null,null,null,null,null,null,2500]
[null,3805,null,null,null,null,null,null,null,null,null,null,null,null,2500]
[null,3805,null,null,null,null,null,null,null,null,null,null,null,null,2500]
[null,3805,null,null,null,null,null,null,null,null,null,null,null,null,2500]
[null,3805,null,null,null,null,null,null,null,null,null,null,null,null,2500]
[null,3805,null,null,null,null,null,null,null,null,null,null,null,null,2500]
[null,3805,null,null,null,null,null,null,null,null,null,null,null,null,2500]
[null,3805,null,null,null,null,null,null,null,null,null,null,null,null,2500]
[null,3805]
[null,3805]
[null,3805]
[null,3805]
[null,3805]
[null,3805]
[null,3805]
[null,3805]
[null,3805]
[null,3805]
[null,3805]
[null,3805]
[null,3805]
[null,3805]
[null,3805]
[null,3805]
[null,3805]
[null,3805]
[null,3805]
[null,3805]
[null,3805]
[null,3805]
[null,3805]
[null,3805]
[null,3805]
[null,3805]
[null,3805]
[null,3805]
[null,3805]
[null,3805]
[null,3805]
[null,3805]
[null,3805]
[null,3805]
[null,3805]
[null,3805]
[null,3805]
[null,3805]
[null,3805]
[null,3805]
[null,3805]
[null,3805]
[null,3805]
[null,3805]
[null,3805]
[null,{"$f":"B322+E323-F323","v":3805}]
[null,3805]
[null,3805]
[null,3805]
[null,3805]
[null,3805]
[null,3805]
[null,3805]
[null,3805]
[null,3805]
[null,3805]
[null,3805]
[null,3805]
[null,3805]
[null,3805]
[null,3805]
[null,3805]
[null,3805]
[null,3805]
[null,3805]
[null,3805]
[null,3805]
[null,3805]
[null,3805]
[null,3805]
[null,3805]
[null,3805]
[null,3805]
[null,3805]
[null,3805]
[null,3805]
[null,3805]
[null,3805]
[null,3805]
[null,3805]
[null,3805]
[null,3805]
[null,3805]
[null,3805]
[null,3805]
[null,3805]
[null,3805]
[null,3805]
[null,3805]
[null,3805]
[null,3805]
[null,3805]
[null,3805]
[null,3805]
[null,3805]
[null,3805]
[null,3805]
[null,3805]
[null,3805]
[null,3805]
[null,3805]
[null,3805]
[null,3805]
[null,3805]
[null,3805]
[null,3805]
[null,3805]
[null,3805]
[null,3805]
[null,{"$f":"B386+E387-F387","v":3805}]
[null,3805]
[null,3805]
[null,3805]
[null,3805]
[null,3805]
[null,3805]
[null,3805]
[null,3805]
[null,3805]
[null,3805]
[null,3805]
[null,3805]
[null,3805]
[null,3805]
[null,3805]
[null,3805]
[null,3805]
[null,3805]
[null,3805]
[null,3805]
[null,3805]
[null,3805]
[null,3805]
[null,3805]
[null,3805]
[null,3805]
[null,3805]
[null,3805]
[null,3805]
[null,3805]
[null,3805]
[null,3805]
[null,3805]
[null,3805]
[null,3805]
[null,3805]
[null,3805]
[null,3805]
[null,3805]
[null,3805]
[null,3805]
[null,3805]
[null,3805]
[null,3805]

{"sheet":"Sheet5","index":5,"n_rows":431,"n_cols":19,"rows_kept":431,"cut":false,"hidden":false,"merged":[]}
["الانتقال","رصيـــــــــد","التاريــــــــــــــــخ ","رقم الايصال","عهده","مصروفـــــــــــــات","بيـــــــــــــان","التوجيه","كود التحليل","التحليل","الموقع","صرفت / استلمت بواسطة","ملاحظات","الانتقال","رصيـــــــــد","تسوية","سلفه","بيـــــــــــــان","التاريــــــــــــــــخ "]
[null,null,null,null,null,null,"تصفية بتاريخ 25/5/2019",null,null,null,null,null,null,null,null,null,null,"سلف"]
[null,{"$f":"B2+E3-F3","v":300},"2022-01-01",null,300,null,"عهدة",null,null,null,null,null,null,null,500,null,500,"سلفه1"]
[null,1300,"2022-01-11",null,1000,null,"عهدة",null,null,null,null,null,null,null,1500,null,1000,"سلفه2","2021-12-19"]
[null,1800,"2022-01-17",null,500,null,"عهدة",null,null,null,null,null,null,null,1970,null,470,"سلفه3"]
[null,2385,"2022-01-18",null,585,null,"عهدة",null,null,null,null,null,null,null,1985,null,15,"سلفه4"]
[null,2080,"2022-01-09",null,null,305,"ح / 55 رسوم طريق + 250 بنزين الكرولا 5238",5238,"قسم الحركة",null,null,null,null,null,-500,2485,null,"خصمت من مرتب شهر12"]
[null,2010,"من 12/1/2022 الي 17/1/2022",null,null,70,"رسوم طريق","رسوم طريق","قسم الحركة",null,null,null,null,null,0,null,500,"سلفه5","2022-01-01"]
[null,1075,"من 12/1/2022 الي 17/1/2022",null,null,935,"محروقات السيارة الاسكودا البيضاء","محروقات","قسم الحركة",null,null,null,null,null,0,0,0,"سلفه6"]
[null,995,"2022-01-17",null,null,80,"غسيل السيارة الاسكودا البيضاء","غسيل","قسم الحركة",null,null,null,null,null,470,null,470,"سلفه7","2022-02-02"]
[null,1995,"2022-01-31",null,1000,null,"عهده إبراهيم البعار بيد ا0محمد",null,null,null,null,null,null,null,0,470,0,"خصمت من مرتب شهر01 / 2022"]
[null,1465,"2022-01-31",null,null,530,"ح / فاتورة خشب كونتر طبقات 7 م  + 70 نقل للجلاء",null,null,null,null,null,null,null,500,null,500,"سلفه8","2022-02-08"]
[null,995,null,null,null,470,"باقي 1000 عهدة فاتورة الخشب توضع سلفه",null,null,null,null,null,null,null,1000,null,500,"سلفه9","2022-05-19"]
[null,1595,"2022-02-09",null,600,null,"عهدة",null,null,null,null,null,null,null,0,1000,0,"خصمت من مرتب شهر02 / 2022"]
[null,1555,"2022-02-08",null,null,40,"ح / رسوم طريق الاسكودا 5468",null,null,null,null,null,null,null,1000,null,1000,"سلفه10","2022-03-14"]
[null,1055,"2022-02-08",null,null,500,"بنزين الاسكودا 5468",null,null,null,null,null,null,null,1500,null,500,"سلفه11","2022-03-26"]
[null,1005,"2022-02-08",null,null,50,"مصاريف فطار ( بيد إبراهيم البعار )",null,null,null,null,null,null,null,2500,null,1000,"سلفه12","2022-04-09"]
[null,2505,"2022-02-12",null,1500,null,"عهدة",null,null,null,null,null,null,null,2500]
[null,2465,"9/2/2022+12/2/2022",null,null,40,"ح / رسوم طريق الاسكودا 5468",null,null,null,null,null,null,null,2500]
[null,1595,"9/2/2022+12/2/2022",null,null,870,"بنزين الاسكودا 5468",null,null,null,null,null,null,null,2500]
[null,1560,"2022-02-12",null,null,35,"فاتورة صابون لغسيل الاسكودا 5468",null,null,null,null,null,null,null,2500]
[null,1550,"2022-02-12",null,null,10,"باركنج للسيارة الاسكودا 5468",null,null,null,null,null,null,null,2500]
[null,3550,"2022-02-24",null,2000,null,"عهدة",null,null,null,null,null,null,null,2500]
[null,4100,"2022-02-24",null,550,null,"عهدة",null,null,null,null,null,null,null,2500]
[null,3120,"2022-02-24",null,null,980,"ح / مصاريف خاصة(170 فطار ومشاريب + 750 غداء وحاجه ساقعه+60 مشاريب )",null,null,null,null,null,null,null,2500]
[null,3065,"من21/2/2022 الي 24/2/2022",null,null,55,"ح / رسوم طريق",null,null,null,null,null,null,null,2500]
[null,2720,"2022-02-23",null,null,345,"سولار الدبل 5124",null,null,null,null,null,null,null,2500]
[null,2570,"2022-02-23",null,null,150,"ح / مخالفة طريق",null,null,null,null,null,null,null,2500]
[null,2540,"2022-02-23",null,null,30,"ح / شطف وضبط كاوتش وفلتر الدبل 5124",null,null,null,null,null,null,null,2500]
[null,3040,"2022-03-03",null,500,null,"عهدة",null,null,null,null,null,null,null,2500]
[null,3790,"2022-03-09",null,750,null,"عهدة",null,null,null,null,null,null,null,2500]
[null,4300,"2022-03-10",null,510,null,"عهدة",null,null,null,null,null,null,null,2500]
[null,4080,null,null,null,220,"رسوم طريق","م تشغيل",null,null,"قسم الحركة","المشتري1",null,null,2500]
[null,3580,"2022-02-26",null,null,500,"بنزين95 السياره الكودياك (5468)","المحروقات",null,null,"قسم الحركة","المشتري1",null,null,2500]
[null,3150,"2022-02-28",null,null,430,"بنزين92 السياره الكودياك (5468)","المحروقات",null,null,"قسم الحركة","المشتري1",null,null,2500]
[null,2800,"2022-03-03",null,null,350,"بنزين92 السياره الكودياك (5468)","المحروقات",null,null,"قسم الحركة","المشتري1",null,null,2500]
[null,2410,"2022-03-08",null,null,390,"بنزين95 السياره الكودياك (5468)","المحروقات",null,null,"قسم الحركة","المشتري1",null,null,2500]
[null,2110,"2022-03-08",null,null,300,"بنزين95 السياره الكودياك (5468)","المحروقات",null,null,"قسم الحركة","المشتري1",null,null,2500]
[null,1675,"2022-03-09",null,null,435,"بنزين95 السياره الكودياك (5468)","المحروقات",null,null,"قسم الحركة","المشتري1",null,null,2500]
[null,1215,"2022-03-12",null,null,460,"بنزين95 السياره الكودياك (5468)","المحروقات",null,null,"قسم الحركة","المشتري1",null,null,2500]
[null,945,"2022-03-13",null,null,270,"بنزين95 السياره الكودياك (5468)","المحروقات",null,null,"قسم الحركة","المشتري1",null,null,2500]
[null,940,"2022-03-05",null,null,5,"رسوم دخول المركز الطبي","م تشغيل",null,null,"قسم الحركة","المشتري1",null,null,2500]
[null,925,"2022-03-08",null,null,15,"علبه مناديل فاين السياره الكودياك(5468)","م تشغيل",null,null,"قسم الحركة","المشتري1",null,null,2500]
[null,885,"2022-03-10",null,null,40,"غسيل + صيانه كاوتش السياره الكودياك(5468)","صيانة السيارات",null,null,"قسم الحركة","المشتري1",null,null,2500]
[null,855,"-",null,null,30,"غسيل سياره الضيف(بدون فاتوره)","م عموميه",null,null,"قسم الحركة","المشتري1",null,null,2500]
[null,780,"-",null,null,75,"مصاريف خاصه م/عماد (فطار + مياه) بدون فاتوره","م عموميه",null,null,"قسم الحركة","المشتري1",null,null,2500]
[null,740,"-",null,null,40,"معجون أسنان م/عماد(بدون فاتوره)","م عموميه",null,null,"قسم الحركة","المشتري1",null,null,2500]
[null,730,"-",null,null,10,"علبه ينسون للمكتب(بدون فاتوره)","م عموميه",null,null,"قسم الحركة","المشتري1",null,null,2500]
[null,715,"-",null,null,15,"ح/عامل تحميل كراتين الحلوق القاهره(بدون فاتوره)","م تشغيل",null,null,"قسم الحركة","المشتري1",null,null,2500]
[null,695,"-",null,null,20,"غسيل السياره الكودياك(5468)","م تشغيل",null,null,"قسم الحركة","المشتري1",null,null,2500]
[null,1485,"2022-03-14",null,790,null,"عهدة",null,null,null,null,"المشتري1",null,null,2500]
[null,1415,"16/3/2022+19/3/2022",null,null,70,"رسوم طريق","م تشغيل",null,null,"قسم الحركة","المشتري1",null,null,2500]
[null,480,"16/3/2022+19/3/2022",null,null,935,"ح / عدد 2 فاتورة بنزين الاسكودا5468","المحروقات",null,null,"قسم الحركة","المشتري1",null,null,2500]
[null,470,"2022-03-20",null,null,10,"ح / رسوم طريق","م تشغيل",null,null,"قسم الحركة","المشتري1",null,null,2500]
[null,5,"2022-03-20",null,null,465,"ح / فاتورة بنزين 92 الاسكودا","المحروقات",null,null,"قسم الحركة","المشتري1",null,null,2500]
[null,1500,"2022-03-21",null,1495,null,"عهدة",null,null,null,null,"المشتري1",null,null,2500]
[null,1480,"2022-03-22",null,null,20,"عدد 3 كارته رسوم طريق (القاهره)","م تشغيل",null,null,"قسم الحركة","المشتري1",null,null,2500]
[null,1080,"2022-03-22",null,null,400,"فاتوره بنزين 95 السياره الكودياك (5468)","المحروقات",null,null,"قسم الحركة","المشتري1",null,null,2500]
[null,1075,"2022-03-22",null,null,5,"ايصال دخول مبني الزراعات بالقاهره","م تشغيل",null,null,"قسم الحركة","المشتري1",null,null,2500]
[null,1500,"2022-03-24",null,425,null,"عهدة",null,null,null,null,null,null,null,2500]
[null,1980,"30/03/2022",null,480,null,"عهدة",null,null,null,null,null,null,null,2500]
[null,2680,"2022-04-05",null,700,null,"عهدة",null,null,null,null,null,null,null,2500]
[null,3245,"2022-07-04",null,565,null,"عهدة",null,null,null,null,null,null,null,2500]
[null,3805,"2022-07-04",null,560,null,"عهدة",null,null,null,null,null,null,null,2500]
[null,3805,null,null,null,null,null,null,null,null,null,null,null,null,2500]
[null,3805,null,null,null,null,null,null,null,null,null,null,null,null,2500]
[null,{"$f":"B66+E67-F67","v":3805},null,null,null,null,null,null,null,null,null,null,null,null,2500]
[null,3805,null,null,null,null,null,null,null,null,null,null,null,null,2500]
[null,3805,null,null,null,null,null,null,null,null,null,null,null,null,2500]
[null,3805,null,null,null,null,null,null,null,null,null,null,null,null,2500]
[null,3805,null,null,null,null,null,null,null,null,null,null,null,null,2500]
[null,3805,null,null,null,null,null,null,null,null,null,null,null,null,2500]
[null,3805,null,null,null,null,null,null,null,null,null,null,null,null,2500]
[null,3805,null,null,null,null,null,null,null,null,null,null,null,null,2500]
[null,3805,null,null,null,null,null,null,null,null,null,null,null,null,2500]
[null,3805,null,null,null,null,null,null,null,null,null,null,null,null,2500]
[null,3805,null,null,null,null,null,null,null,null,null,null,null,null,2500]
[null,3805,null,null,null,null,null,null,null,null,null,null,null,null,2500]
[null,3805,null,null,null,null,null,null,null,null,null,null,null,null,2500]
[null,3805,null,null,null,null,null,null,null,null,null,null,null,null,2500]
[null,3805,null,null,null,null,null,null,null,null,null,null,null,null,2500]
[null,3805,null,null,null,null,null,null,null,null,null,null,null,null,2500]
[null,3805,null,null,null,null,null,null,null,null,null,null,null,null,2500]
[null,3805,null,null,null,null,null,null,null,null,null,null,null,null,2500]
[null,3805,null,null,null,null,null,null,null,null,null,null,null,null,2500]
[null,3805,null,null,null,null,null,null,null,null,null,null,null,null,2500]
[null,3805,null,null,null,null,null,null,null,null,null,null,null,null,2500]
[null,3805,null,null,null,null,null,null,null,null,null,null,null,null,2500]
[null,3805,null,null,null,null,null,null,null,null,null,null,null,null,2500]
[null,3805,null,null,null,null,null,null,null,null,null,null,null,null,2500]
[null,3805,null,null,null,null,null,null,null,null,null,null,null,null,2500]
[null,3805,null,null,null,null,null,null,null,null,null,null,null,null,2500]
[null,3805,null,null,null,null,null,null,null,null,null,null,null,null,2500]
[null,3805,null,null,null,null,null,null,null,null,null,null,null,null,2500]
[null,3805,null,null,null,null,null,null,null,null,null,null,null,null,2500]
[null,3805,null,null,null,null,null,null,null,null,null,null,null,null,2500]
[null,3805,null,null,null,null,null,null,null,null,null,null,null,null,2500]
[null,3805,null,null,null,null,null,null,null,null,null,null,null,null,2500]
[null,3805,null,null,null,null,null,null,null,null,null,null,null,null,2500]
[null,3805,null,null,null,null,null,null,null,null,null,null,null,null,2500]
[null,3805,null,null,null,null,null,null,null,null,null,null,null,null,2500]
[null,3805,null,null,null,null,null,null,null,null,null,null,null,null,2500]
[null,3805,null,null,null,null,null,null,null,null,null,null,null,null,2500]
[null,3805,null,null,null,null,null,null,null,null,null,null,null,null,2500]
[null,3805,null,null,null,null,null,null,null,null,null,null,null,null,2500]
[null,3805,null,null,null,null,null,null,null,null,null,null,null,null,2500]
[null,3805,null,null,null,null,null,null,null,null,null,null,null,null,2500]
[null,3805,null,null,null,null,null,null,null,null,null,null,null,null,2500]
[null,3805,null,null,null,null,null,null,null,null,null,null,null,null,2500]
[null,3805,null,null,null,null,null,null,null,null,null,null,null,null,2500]
[null,3805,null,null,null,null,null,null,null,null,null,null,null,null,2500]
[null,3805,null,null,null,null,null,null,null,null,null,null,null,null,2500]
[null,3805,null,null,null,null,null,null,null,null,null,null,null,null,2500]
[null,3805,null,null,null,null,null,null,null,null,null,null,null,null,2500]
[null,3805,null,null,null,null,null,null,null,null,null,null,null,null,2500]
[null,3805,null,null,null,null,null,null,null,null,null,null,null,null,2500]
[null,3805,null,null,null,null,null,null,null,null,null,null,null,null,2500]
[null,3805,null,null,null,null,null,null,null,null,null,null,null,null,2500]
[null,3805,null,null,null,null,null,null,null,null,null,null,null,null,2500]
[null,3805,null,null,null,null,null,null,null,null,null,null,null,null,2500]
[null,3805,null,null,null,null,null,null,null,null,null,null,null,null,2500]
[null,3805,null,null,null,null,null,null,null,null,null,null,null,null,2500]
[null,3805,null,null,null,null,null,null,null,null,null,null,null,null,2500]
[null,3805,null,null,null,null,null,null,null,null,null,null,null,null,2500]
[null,3805,null,null,null,null,null,null,null,null,null,null,null,null,2500]
[null,3805,null,null,null,null,null,null,null,null,null,null,null,null,2500]
[null,3805,null,null,null,null,null,null,null,null,null,null,null,null,2500]
[null,3805,null,null,null,null,null,null,null,null,null,null,null,null,2500]
[null,3805,null,null,null,null,null,null,null,null,null,null,null,null,2500]
[null,3805,null,null,null,null,null,null,null,null,null,null,null,null,2500]
[null,{"$f":"B130+E131-F131","v":3805},null,null,null,null,null,null,null,null,null,null,null,null,2500]
[null,3805,null,null,null,null,null,null,null,null,null,null,null,null,2500]
[null,3805,null,null,null,null,null,null,null,null,null,null,null,null,2500]
[null,3805,null,null,null,null,null,null,null,null,null,null,null,null,2500]
[null,3805,null,null,null,null,null,null,null,null,null,null,null,null,2500]
[null,3805,null,null,null,null,null,null,null,null,null,null,null,null,2500]
[null,3805,null,null,null,null,null,null,null,null,null,null,null,null,2500]
[null,3805,null,null,null,null,null,null,null,null,null,null,null,null,2500]
[null,3805,null,null,null,null,null,null,null,null,null,null,null,null,2500]
[null,3805,null,null,null,null,null,null,null,null,null,null,null,null,2500]
[null,3805,null,null,null,null,null,null,null,null,null,null,null,null,2500]
[null,3805,null,null,null,null,null,null,null,null,null,null,null,null,2500]
[null,3805,null,null,null,null,null,null,null,null,null,null,null,null,2500]
[null,3805,null,null,null,null,null,null,null,null,null,null,null,null,2500]
[null,3805,null,null,null,null,null,null,null,null,null,null,null,null,2500]
[null,3805,null,null,null,null,null,null,null,null,null,null,null,null,2500]
[null,3805,null,null,null,null,null,null,null,null,null,null,null,null,2500]
[null,3805,null,null,null,null,null,null,null,null,null,null,null,null,2500]
[null,3805,null,null,null,null,null,null,null,null,null,null,null,null,2500]
[null,3805,null,null,null,null,null,null,null,null,null,null,null,null,2500]
[null,3805,null,null,null,null,null,null,null,null,null,null,null,null,2500]
[null,3805,null,null,null,null,null,null,null,null,null,null,null,null,2500]
[null,3805,null,null,null,null,null,null,null,null,null,null,null,null,2500]
[null,3805,null,null,null,null,null,null,null,null,null,null,null,null,2500]
[null,3805,null,null,null,null,null,null,null,null,null,null,null,null,2500]
[null,3805,null,null,null,null,null,null,null,null,null,null,null,null,2500]
[null,3805,null,null,null,null,null,null,null,null,null,null,null,null,2500]
[null,3805,null,null,null,null,null,null,null,null,null,null,null,null,2500]
[null,3805,null,null,null,null,null,null,null,null,null,null,null,null,2500]
[null,3805,null,null,null,null,null,null,null,null,null,null,null,null,2500]
[null,3805,null,null,null,null,null,null,null,null,null,null,null,null,2500]
[null,3805,null,null,null,null,null,null,null,null,null,null,null,null,2500]
[null,3805,null,null,null,null,null,null,null,null,null,null,null,null,2500]
[null,3805,null,null,null,null,null,null,null,null,null,null,null,null,2500]
[null,3805,null,null,null,null,null,null,null,null,null,null,null,null,2500]
[null,3805,null,null,null,null,null,null,null,null,null,null,null,null,2500]
[null,3805,null,null,null,null,null,null,null,null,null,null,null,null,2500]
[null,3805,null,null,null,null,null,null,null,null,null,null,null,null,2500]
[null,3805,null,null,null,null,null,null,null,null,null,null,null,null,2500]
[null,3805,null,null,null,null,null,null,null,null,null,null,null,null,2500]
[null,3805,null,null,null,null,null,null,null,null,null,null,null,null,2500]
[null,3805,null,null,null,null,null,null,null,null,null,null,null,null,2500]
[null,3805,null,null,null,null,null,null,null,null,null,null,null,null,2500]
[null,3805,null,null,null,null,null,null,null,null,null,null,null,null,2500]
[null,3805,null,null,null,null,null,null,null,null,null,null,null,null,2500]
[null,3805,null,null,null,null,null,null,null,null,null,null,null,null,2500]
[null,3805,null,null,null,null,null,null,null,null,null,null,null,null,2500]
[null,3805,null,null,null,null,null,null,null,null,null,null,null,null,2500]
[null,3805,null,null,null,null,null,null,null,null,null,null,null,null,2500]
[null,3805,null,null,null,null,null,null,null,null,null,null,null,null,2500]
[null,3805,null,null,null,null,null,null,null,null,null,null,null,null,2500]
[null,3805,null,null,null,null,null,null,null,null,null,null,null,null,2500]
[null,3805,null,null,null,null,null,null,null,null,null,null,null,null,2500]
[null,3805,null,null,null,null,null,null,null,null,null,null,null,null,2500]
[null,3805,null,null,null,null,null,null,null,null,null,null,null,null,2500]
[null,3805,null,null,null,null,null,null,null,null,null,null,null,null,2500]
[null,3805,null,null,null,null,null,null,null,null,null,null,null,null,2500]
[null,3805,null,null,null,null,null,null,null,null,null,null,null,null,2500]
[null,3805,null,null,null,null,null,null,null,null,null,null,null,null,2500]
[null,3805,null,null,null,null,null,null,null,null,null,null,null,null,2500]
[null,3805,null,null,null,null,null,null,null,null,null,null,null,null,2500]
[null,3805,null,null,null,null,null,null,null,null,null,null,null,null,2500]
[null,3805,null,null,null,null,null,null,null,null,null,null,null,null,2500]
[null,3805,null,null,null,null,null,null,null,null,null,null,null,null,2500]
[null,{"$f":"B194+E195-F195","v":3805},null,null,null,null,null,null,null,null,null,null,null,null,2500]
[null,3805,null,null,null,null,null,null,null,null,null,null,null,null,2500]
[null,3805,null,null,null,null,null,null,null,null,null,null,null,null,2500]
[null,3805,null,null,null,null,null,null,null,null,null,null,null,null,2500]
[null,3805,null,null,null,null,null,null,null,null,null,null,null,null,2500]
[null,3805,null,null,null,null,null,null,null,null,null,null,null,null,2500]
[null,3805,null,null,null,null,null,null,null,null,null,null,null,null,2500]
[null,3805,null,null,null,null,null,null,null,null,null,null,null,null,2500]
[null,3805,null,null,null,null,null,null,null,null,null,null,null,null,2500]
[null,3805,null,null,null,null,null,null,null,null,null,null,null,null,2500]
[null,3805,null,null,null,null,null,null,null,null,null,null,null,null,2500]
[null,3805,null,null,null,null,null,null,null,null,null,null,null,null,2500]
[null,3805,null,null,null,null,null,null,null,null,null,null,null,null,2500]
[null,3805,null,null,null,null,null,null,null,null,null,null,null,null,2500]
[null,3805,null,null,null,null,null,null,null,null,null,null,null,null,2500]
[null,3805,null,null,null,null,null,null,null,null,null,null,null,null,2500]
[null,3805,null,null,null,null,null,null,null,null,null,null,null,null,2500]
[null,3805,null,null,null,null,null,null,null,null,null,null,null,null,2500]
[null,3805,null,null,null,null,null,null,null,null,null,null,null,null,2500]
[null,3805,null,null,null,null,null,null,null,null,null,null,null,null,2500]
[null,3805,null,null,null,null,null,null,null,null,null,null,null,null,2500]
[null,3805,null,null,null,null,null,null,null,null,null,null,null,null,2500]
[null,3805,null,null,null,null,null,null,null,null,null,null,null,null,2500]
[null,3805,null,null,null,null,null,null,null,null,null,null,null,null,2500]
[null,3805,null,null,null,null,null,null,null,null,null,null,null,null,2500]
[null,3805,null,null,null,null,null,null,null,null,null,null,null,null,2500]
[null,3805,null,null,null,null,null,null,null,null,null,null,null,null,2500]
[null,3805,null,null,null,null,null,null,null,null,null,null,null,null,2500]
[null,3805,null,null,null,null,null,null,null,null,null,null,null,null,2500]
[null,3805,null,null,null,null,null,null,null,null,null,null,null,null,2500]
[null,3805,null,null,null,null,null,null,null,null,null,null,null,null,2500]
[null,3805,null,null,null,null,null,null,null,null,null,null,null,null,2500]
[null,3805,null,null,null,null,null,null,null,null,null,null,null,null,2500]
[null,3805,null,null,null,null,null,null,null,null,null,null,null,null,2500]
[null,3805,null,null,null,null,null,null,null,null,null,null,null,null,2500]
[null,3805,null,null,null,null,null,null,null,null,null,null,null,null,2500]
[null,3805,null,null,null,null,null,null,null,null,null,null,null,null,2500]
[null,3805,null,null,null,null,null,null,null,null,null,null,null,null,2500]
[null,3805,null,null,null,null,null,null,null,null,null,null,null,null,2500]
[null,3805,null,null,null,null,null,null,null,null,null,null,null,null,2500]
[null,3805,null,null,null,null,null,null,null,null,null,null,null,null,2500]
[null,3805,null,null,null,null,null,null,null,null,null,null,null,null,2500]
[null,3805,null,null,null,null,null,null,null,null,null,null,null,null,2500]
[null,3805,null,null,null,null,null,null,null,null,null,null,null,null,2500]
[null,3805,null,null,null,null,null,null,null,null,null,null,null,null,2500]
[null,3805,null,null,null,null,null,null,null,null,null,null,null,null,2500]
[null,3805,null,null,null,null,null,null,null,null,null,null,null,null,2500]
[null,3805,null,null,null,null,null,null,null,null,null,null,null,null,2500]
[null,3805,null,null,null,null,null,null,null,null,null,null,null,null,2500]
[null,3805,null,null,null,null,null,null,null,null,null,null,null,null,2500]
[null,3805,null,null,null,null,null,null,null,null,null,null,null,null,2500]
[null,3805,null,null,null,null,null,null,null,null,null,null,null,null,2500]
[null,3805,null,null,null,null,null,null,null,null,null,null,null,null,2500]
[null,3805,null,null,null,null,null,null,null,null,null,null,null,null,2500]
[null,3805,null,null,null,null,null,null,null,null,null,null,null,null,2500]
[null,3805,null,null,null,null,null,null,null,null,null,null,null,null,2500]
[null,3805,null,null,null,null,null,null,null,null,null,null,null,null,2500]
[null,3805,null,null,null,null,null,null,null,null,null,null,null,null,2500]
[null,3805,null,null,null,null,null,null,null,null,null,null,null,null,2500]
[null,3805,null,null,null,null,null,null,null,null,null,null,null,null,2500]
[null,3805,null,null,null,null,null,null,null,null,null,null,null,null,2500]
[null,3805,null,null,null,null,null,null,null,null,null,null,null,null,2500]
[null,3805,null,null,null,null,null,null,null,null,null,null,null,null,2500]
[null,3805,null,null,null,null,null,null,null,null,null,null,null,null,2500]
[null,{"$f":"B258+E259-F259","v":3805},null,null,null,null,null,null,null,null,null,null,null,null,2500]
[null,3805,null,null,null,null,null,null,null,null,null,null,null,null,2500]
[null,3805,null,null,null,null,null,null,null,null,null,null,null,null,2500]
[null,3805,null,null,null,null,null,null,null,null,null,null,null,null,2500]
[null,3805,null,null,null,null,null,null,null,null,null,null,null,null,2500]
[null,3805,null,null,null,null,null,null,null,null,null,null,null,null,2500]
[null,3805,null,null,null,null,null,null,null,null,null,null,null,null,2500]
[null,3805,null,null,null,null,null,null,null,null,null,null,null,null,2500]
[null,3805,null,null,null,null,null,null,null,null,null,null,null,null,2500]
[null,3805,null,null,null,null,null,null,null,null,null,null,null,null,2500]
[null,3805,null,null,null,null,null,null,null,null,null,null,null,null,2500]
[null,3805,null,null,null,null,null,null,null,null,null,null,null,null,2500]
[null,3805,null,null,null,null,null,null,null,null,null,null,null,null,2500]
[null,3805,null,null,null,null,null,null,null,null,null,null,null,null,2500]
[null,3805,null,null,null,null,null,null,null,null,null,null,null,null,2500]
[null,3805,null,null,null,null,null,null,null,null,null,null,null,null,2500]
[null,3805,null,null,null,null,null,null,null,null,null,null,null,null,2500]
[null,3805,null,null,null,null,null,null,null,null,null,null,null,null,2500]
[null,3805,null,null,null,null,null,null,null,null,null,null,null,null,2500]
[null,3805]
[null,3805]
[null,3805]
[null,3805]
[null,3805]
[null,3805]
[null,3805]
[null,3805]
[null,3805]
[null,3805]
[null,3805]
[null,3805]
[null,3805]
[null,3805]
[null,3805]
[null,3805]
[null,3805]
[null,3805]
[null,3805]
[null,3805]
[null,3805]
[null,3805]
[null,3805]
[null,3805]
[null,3805]
[null,3805]
[null,3805]
[null,3805]
[null,3805]
[null,3805]
[null,3805]
[null,3805]
[null,3805]
[null,3805]
[null,3805]
[null,3805]
[null,3805]
[null,3805]
[null,3805]
[null,3805]
[null,3805]
[null,3805]
[null,3805]
[null,3805]
[null,3805]
[null,{"$f":"B322+E323-F323","v":3805}]
[null,3805]
[null,3805]
[null,3805]
[null,3805]
[null,3805]
[null,3805]
[null,3805]
[null,3805]
[null,3805]
[null,3805]
[null,3805]
[null,3805]
[null,3805]
[null,3805]
[null,3805]
[null,3805]
[null,3805]
[null,3805]
[null,3805]
[null,3805]
[null,3805]
[null,3805]
[null,3805]
[null,3805]
[null,3805]
[null,3805]
[null,3805]
[null,3805]
[null,3805]
[null,3805]
[null,3805]
[null,3805]
[null,3805]
[null,3805]
[null,3805]
[null,3805]
[null,3805]
[null,3805]
[null,3805]
[null,3805]
[null,3805]
[null,3805]
[null,3805]
[null,3805]
[null,3805]
[null,3805]
[null,3805]
[null,3805]
[null,3805]
[null,3805]
[null,3805]
[null,3805]
[null,3805]
[null,3805]
[null,3805]
[null,3805]
[null,3805]
[null,3805]
[null,3805]
[null,3805]
[null,3805]
[null,3805]
[null,3805]
[null,{"$f":"B386+E387-F387","v":3805}]
[null,3805]
[null,3805]
[null,3805]
[null,3805]
[null,3805]
[null,3805]
[null,3805]
[null,3805]
[null,3805]
[null,3805]
[null,3805]
[null,3805]
[null,3805]
[null,3805]
[null,3805]
[null,3805]
[null,3805]
[null,3805]
[null,3805]
[null,3805]
[null,3805]
[null,3805]
[null,3805]
[null,3805]
[null,3805]
[null,3805]
[null,3805]
[null,3805]
[null,3805]
[null,3805]
[null,3805]
[null,3805]
[null,3805]
[null,3805]
[null,3805]
[null,3805]
[null,3805]
[null,3805]
[null,3805]
[null,3805]
[null,3805]
[null,3805]
[null,3805]
[null,3805]

{"sheet":"Sheet6","index":6,"n_rows":431,"n_cols":19,"rows_kept":431,"cut":false,"hidden":false,"merged":[]}
["الانتقال","رصيـــــــــد","التاريــــــــــــــــخ ","رقم الايصال","عهده","مصروفـــــــــــــات","بيـــــــــــــان","التوجيه","كود التحليل","التحليل","الموقع","صرفت / استلمت بواسطة","ملاحظات","الانتقال","رصيـــــــــد","تسوية","سلفه","بيـــــــــــــان","التاريــــــــــــــــخ "]
[null,null,null,null,null,null,"تصفية بتاريخ 25/5/2019",null,null,null,null,null,null,null,null,null,null,"سلف"]
[null,{"$f":"B2+E3-F3","v":300},"2022-01-01",null,300,null,"عهدة",null,null,null,null,null,null,null,500,null,500,"سلفه1"]
[null,1300,"2022-01-11",null,1000,null,"عهدة",null,null,null,null,null,null,null,1500,null,1000,"سلفه2","2021-12-19"]
[null,1800,"2022-01-17",null,500,null,"عهدة",null,null,null,null,null,null,null,1970,null,470,"سلفه3"]
[null,2385,"2022-01-18",null,585,null,"عهدة",null,null,null,null,null,null,null,1985,null,15,"سلفه4"]
[null,2080,"2022-01-09",null,null,305,"ح / 55 رسوم طريق + 250 بنزين الكرولا 5238",5238,"قسم الحركة",null,null,null,null,null,-500,2485,null,"خصمت من مرتب شهر12"]
[null,2010,"من 12/1/2022 الي 17/1/2022",null,null,70,"رسوم طريق","رسوم طريق","قسم الحركة",null,null,null,null,null,0,null,500,"سلفه5","2022-01-01"]
[null,1075,"من 12/1/2022 الي 17/1/2022",null,null,935,"محروقات السيارة الاسكودا البيضاء","محروقات","قسم الحركة",null,null,null,null,null,0,0,0,"سلفه6"]
[null,995,"2022-01-17",null,null,80,"غسيل السيارة الاسكودا البيضاء","غسيل","قسم الحركة",null,null,null,null,null,470,null,470,"سلفه7","2022-02-02"]
[null,1995,"2022-01-31",null,1000,null,"عهده إبراهيم البعار بيد ا0محمد",null,null,null,null,null,null,null,0,470,0,"خصمت من مرتب شهر01 / 2022"]
[null,1465,"2022-01-31",null,null,530,"ح / فاتورة خشب كونتر طبقات 7 م  + 70 نقل للجلاء",null,null,null,null,null,null,null,500,null,500,"سلفه8","2022-02-08"]
[null,995,null,null,null,470,"باقي 1000 عهدة فاتورة الخشب توضع سلفه",null,null,null,null,null,null,null,1000,null,500,"سلفه9","2022-05-19"]
[null,1595,"2022-02-09",null,600,null,"عهدة",null,null,null,null,null,null,null,0,1000,0,"خصمت من مرتب شهر02 / 2022"]
[null,1555,"2022-02-08",null,null,40,"ح / رسوم طريق الاسكودا 5468",null,null,null,null,null,null,null,1000,null,1000,"سلفه10","2022-03-14"]
[null,1055,"2022-02-08",null,null,500,"بنزين الاسكودا 5468",null,null,null,null,null,null,null,1500,null,500,"سلفه11","2022-03-26"]
[null,1005,"2022-02-08",null,null,50,"مصاريف فطار ( بيد إبراهيم البعار )",null,null,null,null,null,null,null,2500,null,1000,"سلفه12","2022-04-09"]
[null,2505,"2022-02-12",null,1500,null,"عهدة",null,null,null,null,null,null,null,2500]
[null,2465,"9/2/2022+12/2/2022",null,null,40,"ح / رسوم طريق الاسكودا 5468",null,null,null,null,null,null,null,2500]
[null,1595,"9/2/2022+12/2/2022",null,null,870,"بنزين الاسكودا 5468",null,null,null,null,null,null,null,2500]
[null,1560,"2022-02-12",null,null,35,"فاتورة صابون لغسيل الاسكودا 5468",null,null,null,null,null,null,null,2500]
[null,1550,"2022-02-12",null,null,10,"باركنج للسيارة الاسكودا 5468",null,null,null,null,null,null,null,2500]
[null,3550,"2022-02-24",null,2000,null,"عهدة",null,null,null,null,null,null,null,2500]
[null,4100,"2022-02-24",null,550,null,"عهدة",null,null,null,null,null,null,null,2500]
[null,3120,"2022-02-24",null,null,980,"ح / مصاريف خاصة(170 فطار ومشاريب + 750 غداء وحاجه ساقعه+60 مشاريب )",null,null,null,null,null,null,null,2500]
[null,3065,"من21/2/2022 الي 24/2/2022",null,null,55,"ح / رسوم طريق",null,null,null,null,null,null,null,2500]
[null,2720,"2022-02-23",null,null,345,"سولار الدبل 5124",null,null,null,null,null,null,null,2500]
[null,2570,"2022-02-23",null,null,150,"ح / مخالفة طريق",null,null,null,null,null,null,null,2500]
[null,2540,"2022-02-23",null,null,30,"ح / شطف وضبط كاوتش وفلتر الدبل 5124",null,null,null,null,null,null,null,2500]
[null,3040,"2022-03-03",null,500,null,"عهدة",null,null,null,null,null,null,null,2500]
[null,3790,"2022-03-09",null,750,null,"عهدة",null,null,null,null,null,null,null,2500]
[null,4300,"2022-03-10",null,510,null,"عهدة",null,null,null,null,null,null,null,2500]
[null,4080,null,null,null,220,"رسوم طريق","م تشغيل",null,null,"قسم الحركة","المشتري1",null,null,2500]
[null,3580,"2022-02-26",null,null,500,"بنزين95 السياره الكودياك (5468)","المحروقات",null,null,"قسم الحركة","المشتري1",null,null,2500]
[null,3150,"2022-02-28",null,null,430,"بنزين92 السياره الكودياك (5468)","المحروقات",null,null,"قسم الحركة","المشتري1",null,null,2500]
[null,2800,"2022-03-03",null,null,350,"بنزين92 السياره الكودياك (5468)","المحروقات",null,null,"قسم الحركة","المشتري1",null,null,2500]
[null,2410,"2022-03-08",null,null,390,"بنزين95 السياره الكودياك (5468)","المحروقات",null,null,"قسم الحركة","المشتري1",null,null,2500]
[null,2110,"2022-03-08",null,null,300,"بنزين95 السياره الكودياك (5468)","المحروقات",null,null,"قسم الحركة","المشتري1",null,null,2500]
[null,1675,"2022-03-09",null,null,435,"بنزين95 السياره الكودياك (5468)","المحروقات",null,null,"قسم الحركة","المشتري1",null,null,2500]
[null,1215,"2022-03-12",null,null,460,"بنزين95 السياره الكودياك (5468)","المحروقات",null,null,"قسم الحركة","المشتري1",null,null,2500]
[null,945,"2022-03-13",null,null,270,"بنزين95 السياره الكودياك (5468)","المحروقات",null,null,"قسم الحركة","المشتري1",null,null,2500]
[null,940,"2022-03-05",null,null,5,"رسوم دخول المركز الطبي","م تشغيل",null,null,"قسم الحركة","المشتري1",null,null,2500]
[null,925,"2022-03-08",null,null,15,"علبه مناديل فاين السياره الكودياك(5468)","م تشغيل",null,null,"قسم الحركة","المشتري1",null,null,2500]
[null,885,"2022-03-10",null,null,40,"غسيل + صيانه كاوتش السياره الكودياك(5468)","صيانة السيارات",null,null,"قسم الحركة","المشتري1",null,null,2500]
[null,855,"-",null,null,30,"غسيل سياره الضيف(بدون فاتوره)","م عموميه",null,null,"قسم الحركة","المشتري1",null,null,2500]
[null,780,"-",null,null,75,"مصاريف خاصه م/عماد (فطار + مياه) بدون فاتوره","م عموميه",null,null,"قسم الحركة","المشتري1",null,null,2500]
[null,740,"-",null,null,40,"معجون أسنان م/عماد(بدون فاتوره)","م عموميه",null,null,"قسم الحركة","المشتري1",null,null,2500]
[null,730,"-",null,null,10,"علبه ينسون للمكتب(بدون فاتوره)","م عموميه",null,null,"قسم الحركة","المشتري1",null,null,2500]
[null,715,"-",null,null,15,"ح/عامل تحميل كراتين الحلوق القاهره(بدون فاتوره)","م تشغيل",null,null,"قسم الحركة","المشتري1",null,null,2500]
[null,695,"-",null,null,20,"غسيل السياره الكودياك(5468)","م تشغيل",null,null,"قسم الحركة","المشتري1",null,null,2500]
[null,1485,"2022-03-14",null,790,null,"عهدة",null,null,null,null,"المشتري1",null,null,2500]
[null,1415,"16/3/2022+19/3/2022",null,null,70,"رسوم طريق","م تشغيل",null,null,"قسم الحركة","المشتري1",null,null,2500]
[null,480,"16/3/2022+19/3/2022",null,null,935,"ح / عدد 2 فاتورة بنزين الاسكودا5468","المحروقات",null,null,"قسم الحركة","المشتري1",null,null,2500]
[null,470,"2022-03-20",null,null,10,"ح / رسوم طريق","م تشغيل",null,null,"قسم الحركة","المشتري1",null,null,2500]
[null,5,"2022-03-20",null,null,465,"ح / فاتورة بنزين 92 الاسكودا","المحروقات",null,null,"قسم الحركة","المشتري1",null,null,2500]
[null,1500,"2022-03-21",null,1495,null,"عهدة",null,null,null,null,"المشتري1",null,null,2500]
[null,1480,"2022-03-22",null,null,20,"عدد 3 كارته رسوم طريق (القاهره)","م تشغيل",null,null,"قسم الحركة","المشتري1",null,null,2500]
[null,1080,"2022-03-22",null,null,400,"فاتوره بنزين 95 السياره الكودياك (5468)","المحروقات",null,null,"قسم الحركة","المشتري1",null,null,2500]
[null,1075,"2022-03-22",null,null,5,"ايصال دخول مبني الزراعات بالقاهره","م تشغيل",null,null,"قسم الحركة","المشتري1",null,null,2500]
[null,1500,"2022-03-24",null,425,null,"عهدة",null,null,null,null,null,null,null,2500]
[null,1980,"30/03/2022",null,480,null,"عهدة",null,null,null,null,null,null,null,2500]
[null,2680,"2022-04-05",null,700,null,"عهدة",null,null,null,null,null,null,null,2500]
[null,3245,"2022-07-04",null,565,null,"عهدة",null,null,null,null,null,null,null,2500]
[null,3805,"2022-07-04",null,560,null,"عهدة",null,null,null,null,null,null,null,2500]
[null,3805,null,null,null,null,null,null,null,null,null,null,null,null,2500]
[null,3805,null,null,null,null,null,null,null,null,null,null,null,null,2500]
[null,{"$f":"B66+E67-F67","v":3805},null,null,null,null,null,null,null,null,null,null,null,null,2500]
[null,3805,null,null,null,null,null,null,null,null,null,null,null,null,2500]
[null,3805,null,null,null,null,null,null,null,null,null,null,null,null,2500]
[null,3805,null,null,null,null,null,null,null,null,null,null,null,null,2500]
[null,3805,null,null,null,null,null,null,null,null,null,null,null,null,2500]
[null,3805,null,null,null,null,null,null,null,null,null,null,null,null,2500]
[null,3805,null,null,null,null,null,null,null,null,null,null,null,null,2500]
[null,3805,null,null,null,null,null,null,null,null,null,null,null,null,2500]
[null,3805,null,null,null,null,null,null,null,null,null,null,null,null,2500]
[null,3805,null,null,null,null,null,null,null,null,null,null,null,null,2500]
[null,3805,null,null,null,null,null,null,null,null,null,null,null,null,2500]
[null,3805,null,null,null,null,null,null,null,null,null,null,null,null,2500]
[null,3805,null,null,null,null,null,null,null,null,null,null,null,null,2500]
[null,3805,null,null,null,null,null,null,null,null,null,null,null,null,2500]
[null,3805,null,null,null,null,null,null,null,null,null,null,null,null,2500]
[null,3805,null,null,null,null,null,null,null,null,null,null,null,null,2500]
[null,3805,null,null,null,null,null,null,null,null,null,null,null,null,2500]
[null,3805,null,null,null,null,null,null,null,null,null,null,null,null,2500]
[null,3805,null,null,null,null,null,null,null,null,null,null,null,null,2500]
[null,3805,null,null,null,null,null,null,null,null,null,null,null,null,2500]
[null,3805,null,null,null,null,null,null,null,null,null,null,null,null,2500]
[null,3805,null,null,null,null,null,null,null,null,null,null,null,null,2500]
[null,3805,null,null,null,null,null,null,null,null,null,null,null,null,2500]
[null,3805,null,null,null,null,null,null,null,null,null,null,null,null,2500]
[null,3805,null,null,null,null,null,null,null,null,null,null,null,null,2500]
[null,3805,null,null,null,null,null,null,null,null,null,null,null,null,2500]
[null,3805,null,null,null,null,null,null,null,null,null,null,null,null,2500]
[null,3805,null,null,null,null,null,null,null,null,null,null,null,null,2500]
[null,3805,null,null,null,null,null,null,null,null,null,null,null,null,2500]
[null,3805,null,null,null,null,null,null,null,null,null,null,null,null,2500]
[null,3805,null,null,null,null,null,null,null,null,null,null,null,null,2500]
[null,3805,null,null,null,null,null,null,null,null,null,null,null,null,2500]
[null,3805,null,null,null,null,null,null,null,null,null,null,null,null,2500]
[null,3805,null,null,null,null,null,null,null,null,null,null,null,null,2500]
[null,3805,null,null,null,null,null,null,null,null,null,null,null,null,2500]
[null,3805,null,null,null,null,null,null,null,null,null,null,null,null,2500]
[null,3805,null,null,null,null,null,null,null,null,null,null,null,null,2500]
[null,3805,null,null,null,null,null,null,null,null,null,null,null,null,2500]
[null,3805,null,null,null,null,null,null,null,null,null,null,null,null,2500]
[null,3805,null,null,null,null,null,null,null,null,null,null,null,null,2500]
[null,3805,null,null,null,null,null,null,null,null,null,null,null,null,2500]
[null,3805,null,null,null,null,null,null,null,null,null,null,null,null,2500]
[null,3805,null,null,null,null,null,null,null,null,null,null,null,null,2500]
[null,3805,null,null,null,null,null,null,null,null,null,null,null,null,2500]
[null,3805,null,null,null,null,null,null,null,null,null,null,null,null,2500]
[null,3805,null,null,null,null,null,null,null,null,null,null,null,null,2500]
[null,3805,null,null,null,null,null,null,null,null,null,null,null,null,2500]
[null,3805,null,null,null,null,null,null,null,null,null,null,null,null,2500]
[null,3805,null,null,null,null,null,null,null,null,null,null,null,null,2500]
[null,3805,null,null,null,null,null,null,null,null,null,null,null,null,2500]
[null,3805,null,null,null,null,null,null,null,null,null,null,null,null,2500]
[null,3805,null,null,null,null,null,null,null,null,null,null,null,null,2500]
[null,3805,null,null,null,null,null,null,null,null,null,null,null,null,2500]
[null,3805,null,null,null,null,null,null,null,null,null,null,null,null,2500]
[null,3805,null,null,null,null,null,null,null,null,null,null,null,null,2500]
[null,3805,null,null,null,null,null,null,null,null,null,null,null,null,2500]
[null,3805,null,null,null,null,null,null,null,null,null,null,null,null,2500]
[null,3805,null,null,null,null,null,null,null,null,null,null,null,null,2500]
[null,3805,null,null,null,null,null,null,null,null,null,null,null,null,2500]
[null,3805,null,null,null,null,null,null,null,null,null,null,null,null,2500]
[null,3805,null,null,null,null,null,null,null,null,null,null,null,null,2500]
[null,3805,null,null,null,null,null,null,null,null,null,null,null,null,2500]
[null,3805,null,null,null,null,null,null,null,null,null,null,null,null,2500]
[null,3805,null,null,null,null,null,null,null,null,null,null,null,null,2500]
[null,{"$f":"B130+E131-F131","v":3805},null,null,null,null,null,null,null,null,null,null,null,null,2500]
[null,3805,null,null,null,null,null,null,null,null,null,null,null,null,2500]
[null,3805,null,null,null,null,null,null,null,null,null,null,null,null,2500]
[null,3805,null,null,null,null,null,null,null,null,null,null,null,null,2500]
[null,3805,null,null,null,null,null,null,null,null,null,null,null,null,2500]
[null,3805,null,null,null,null,null,null,null,null,null,null,null,null,2500]
[null,3805,null,null,null,null,null,null,null,null,null,null,null,null,2500]
[null,3805,null,null,null,null,null,null,null,null,null,null,null,null,2500]
[null,3805,null,null,null,null,null,null,null,null,null,null,null,null,2500]
[null,3805,null,null,null,null,null,null,null,null,null,null,null,null,2500]
[null,3805,null,null,null,null,null,null,null,null,null,null,null,null,2500]
[null,3805,null,null,null,null,null,null,null,null,null,null,null,null,2500]
[null,3805,null,null,null,null,null,null,null,null,null,null,null,null,2500]
[null,3805,null,null,null,null,null,null,null,null,null,null,null,null,2500]
[null,3805,null,null,null,null,null,null,null,null,null,null,null,null,2500]
[null,3805,null,null,null,null,null,null,null,null,null,null,null,null,2500]
[null,3805,null,null,null,null,null,null,null,null,null,null,null,null,2500]
[null,3805,null,null,null,null,null,null,null,null,null,null,null,null,2500]
[null,3805,null,null,null,null,null,null,null,null,null,null,null,null,2500]
[null,3805,null,null,null,null,null,null,null,null,null,null,null,null,2500]
[null,3805,null,null,null,null,null,null,null,null,null,null,null,null,2500]
[null,3805,null,null,null,null,null,null,null,null,null,null,null,null,2500]
[null,3805,null,null,null,null,null,null,null,null,null,null,null,null,2500]
[null,3805,null,null,null,null,null,null,null,null,null,null,null,null,2500]
[null,3805,null,null,null,null,null,null,null,null,null,null,null,null,2500]
[null,3805,null,null,null,null,null,null,null,null,null,null,null,null,2500]
[null,3805,null,null,null,null,null,null,null,null,null,null,null,null,2500]
[null,3805,null,null,null,null,null,null,null,null,null,null,null,null,2500]
[null,3805,null,null,null,null,null,null,null,null,null,null,null,null,2500]
[null,3805,null,null,null,null,null,null,null,null,null,null,null,null,2500]
[null,3805,null,null,null,null,null,null,null,null,null,null,null,null,2500]
[null,3805,null,null,null,null,null,null,null,null,null,null,null,null,2500]
[null,3805,null,null,null,null,null,null,null,null,null,null,null,null,2500]
[null,3805,null,null,null,null,null,null,null,null,null,null,null,null,2500]
[null,3805,null,null,null,null,null,null,null,null,null,null,null,null,2500]
[null,3805,null,null,null,null,null,null,null,null,null,null,null,null,2500]
[null,3805,null,null,null,null,null,null,null,null,null,null,null,null,2500]
[null,3805,null,null,null,null,null,null,null,null,null,null,null,null,2500]
[null,3805,null,null,null,null,null,null,null,null,null,null,null,null,2500]
[null,3805,null,null,null,null,null,null,null,null,null,null,null,null,2500]
[null,3805,null,null,null,null,null,null,null,null,null,null,null,null,2500]
[null,3805,null,null,null,null,null,null,null,null,null,null,null,null,2500]
[null,3805,null,null,null,null,null,null,null,null,null,null,null,null,2500]
[null,3805,null,null,null,null,null,null,null,null,null,null,null,null,2500]
[null,3805,null,null,null,null,null,null,null,null,null,null,null,null,2500]
[null,3805,null,null,null,null,null,null,null,null,null,null,null,null,2500]
[null,3805,null,null,null,null,null,null,null,null,null,null,null,null,2500]
[null,3805,null,null,null,null,null,null,null,null,null,null,null,null,2500]
[null,3805,null,null,null,null,null,null,null,null,null,null,null,null,2500]
[null,3805,null,null,null,null,null,null,null,null,null,null,null,null,2500]
[null,3805,null,null,null,null,null,null,null,null,null,null,null,null,2500]
[null,3805,null,null,null,null,null,null,null,null,null,null,null,null,2500]
[null,3805,null,null,null,null,null,null,null,null,null,null,null,null,2500]
[null,3805,null,null,null,null,null,null,null,null,null,null,null,null,2500]
[null,3805,null,null,null,null,null,null,null,null,null,null,null,null,2500]
[null,3805,null,null,null,null,null,null,null,null,null,null,null,null,2500]
[null,3805,null,null,null,null,null,null,null,null,null,null,null,null,2500]
[null,3805,null,null,null,null,null,null,null,null,null,null,null,null,2500]
[null,3805,null,null,null,null,null,null,null,null,null,null,null,null,2500]
[null,3805,null,null,null,null,null,null,null,null,null,null,null,null,2500]
[null,3805,null,null,null,null,null,null,null,null,null,null,null,null,2500]
[null,3805,null,null,null,null,null,null,null,null,null,null,null,null,2500]
[null,3805,null,null,null,null,null,null,null,null,null,null,null,null,2500]
[null,3805,null,null,null,null,null,null,null,null,null,null,null,null,2500]
[null,{"$f":"B194+E195-F195","v":3805},null,null,null,null,null,null,null,null,null,null,null,null,2500]
[null,3805,null,null,null,null,null,null,null,null,null,null,null,null,2500]
[null,3805,null,null,null,null,null,null,null,null,null,null,null,null,2500]
[null,3805,null,null,null,null,null,null,null,null,null,null,null,null,2500]
[null,3805,null,null,null,null,null,null,null,null,null,null,null,null,2500]
[null,3805,null,null,null,null,null,null,null,null,null,null,null,null,2500]
[null,3805,null,null,null,null,null,null,null,null,null,null,null,null,2500]
[null,3805,null,null,null,null,null,null,null,null,null,null,null,null,2500]
[null,3805,null,null,null,null,null,null,null,null,null,null,null,null,2500]
[null,3805,null,null,null,null,null,null,null,null,null,null,null,null,2500]
[null,3805,null,null,null,null,null,null,null,null,null,null,null,null,2500]
[null,3805,null,null,null,null,null,null,null,null,null,null,null,null,2500]
[null,3805,null,null,null,null,null,null,null,null,null,null,null,null,2500]
[null,3805,null,null,null,null,null,null,null,null,null,null,null,null,2500]
[null,3805,null,null,null,null,null,null,null,null,null,null,null,null,2500]
[null,3805,null,null,null,null,null,null,null,null,null,null,null,null,2500]
[null,3805,null,null,null,null,null,null,null,null,null,null,null,null,2500]
[null,3805,null,null,null,null,null,null,null,null,null,null,null,null,2500]
[null,3805,null,null,null,null,null,null,null,null,null,null,null,null,2500]
[null,3805,null,null,null,null,null,null,null,null,null,null,null,null,2500]
[null,3805,null,null,null,null,null,null,null,null,null,null,null,null,2500]
[null,3805,null,null,null,null,null,null,null,null,null,null,null,null,2500]
[null,3805,null,null,null,null,null,null,null,null,null,null,null,null,2500]
[null,3805,null,null,null,null,null,null,null,null,null,null,null,null,2500]
[null,3805,null,null,null,null,null,null,null,null,null,null,null,null,2500]
[null,3805,null,null,null,null,null,null,null,null,null,null,null,null,2500]
[null,3805,null,null,null,null,null,null,null,null,null,null,null,null,2500]
[null,3805,null,null,null,null,null,null,null,null,null,null,null,null,2500]
[null,3805,null,null,null,null,null,null,null,null,null,null,null,null,2500]
[null,3805,null,null,null,null,null,null,null,null,null,null,null,null,2500]
[null,3805,null,null,null,null,null,null,null,null,null,null,null,null,2500]
[null,3805,null,null,null,null,null,null,null,null,null,null,null,null,2500]
[null,3805,null,null,null,null,null,null,null,null,null,null,null,null,2500]
[null,3805,null,null,null,null,null,null,null,null,null,null,null,null,2500]
[null,3805,null,null,null,null,null,null,null,null,null,null,null,null,2500]
[null,3805,null,null,null,null,null,null,null,null,null,null,null,null,2500]
[null,3805,null,null,null,null,null,null,null,null,null,null,null,null,2500]
[null,3805,null,null,null,null,null,null,null,null,null,null,null,null,2500]
[null,3805,null,null,null,null,null,null,null,null,null,null,null,null,2500]
[null,3805,null,null,null,null,null,null,null,null,null,null,null,null,2500]
[null,3805,null,null,null,null,null,null,null,null,null,null,null,null,2500]
[null,3805,null,null,null,null,null,null,null,null,null,null,null,null,2500]
[null,3805,null,null,null,null,null,null,null,null,null,null,null,null,2500]
[null,3805,null,null,null,null,null,null,null,null,null,null,null,null,2500]
[null,3805,null,null,null,null,null,null,null,null,null,null,null,null,2500]
[null,3805,null,null,null,null,null,null,null,null,null,null,null,null,2500]
[null,3805,null,null,null,null,null,null,null,null,null,null,null,null,2500]
[null,3805,null,null,null,null,null,null,null,null,null,null,null,null,2500]
[null,3805,null,null,null,null,null,null,null,null,null,null,null,null,2500]
[null,3805,null,null,null,null,null,null,null,null,null,null,null,null,2500]
[null,3805,null,null,null,null,null,null,null,null,null,null,null,null,2500]
[null,3805,null,null,null,null,null,null,null,null,null,null,null,null,2500]
[null,3805,null,null,null,null,null,null,null,null,null,null,null,null,2500]
[null,3805,null,null,null,null,null,null,null,null,null,null,null,null,2500]
[null,3805,null,null,null,null,null,null,null,null,null,null,null,null,2500]
[null,3805,null,null,null,null,null,null,null,null,null,null,null,null,2500]
[null,3805,null,null,null,null,null,null,null,null,null,null,null,null,2500]
[null,3805,null,null,null,null,null,null,null,null,null,null,null,null,2500]
[null,3805,null,null,null,null,null,null,null,null,null,null,null,null,2500]
[null,3805,null,null,null,null,null,null,null,null,null,null,null,null,2500]
[null,3805,null,null,null,null,null,null,null,null,null,null,null,null,2500]
[null,3805,null,null,null,null,null,null,null,null,null,null,null,null,2500]
[null,3805,null,null,null,null,null,null,null,null,null,null,null,null,2500]
[null,3805,null,null,null,null,null,null,null,null,null,null,null,null,2500]
[null,{"$f":"B258+E259-F259","v":3805},null,null,null,null,null,null,null,null,null,null,null,null,2500]
[null,3805,null,null,null,null,null,null,null,null,null,null,null,null,2500]
[null,3805,null,null,null,null,null,null,null,null,null,null,null,null,2500]
[null,3805,null,null,null,null,null,null,null,null,null,null,null,null,2500]
[null,3805,null,null,null,null,null,null,null,null,null,null,null,null,2500]
[null,3805,null,null,null,null,null,null,null,null,null,null,null,null,2500]
[null,3805,null,null,null,null,null,null,null,null,null,null,null,null,2500]
[null,3805,null,null,null,null,null,null,null,null,null,null,null,null,2500]
[null,3805,null,null,null,null,null,null,null,null,null,null,null,null,2500]
[null,3805,null,null,null,null,null,null,null,null,null,null,null,null,2500]
[null,3805,null,null,null,null,null,null,null,null,null,null,null,null,2500]
[null,3805,null,null,null,null,null,null,null,null,null,null,null,null,2500]
[null,3805,null,null,null,null,null,null,null,null,null,null,null,null,2500]
[null,3805,null,null,null,null,null,null,null,null,null,null,null,null,2500]
[null,3805,null,null,null,null,null,null,null,null,null,null,null,null,2500]
[null,3805,null,null,null,null,null,null,null,null,null,null,null,null,2500]
[null,3805,null,null,null,null,null,null,null,null,null,null,null,null,2500]
[null,3805,null,null,null,null,null,null,null,null,null,null,null,null,2500]
[null,3805,null,null,null,null,null,null,null,null,null,null,null,null,2500]
[null,3805]
[null,3805]
[null,3805]
[null,3805]
[null,3805]
[null,3805]
[null,3805]
[null,3805]
[null,3805]
[null,3805]
[null,3805]
[null,3805]
[null,3805]
[null,3805]
[null,3805]
[null,3805]
[null,3805]
[null,3805]
[null,3805]
[null,3805]
[null,3805]
[null,3805]
[null,3805]
[null,3805]
[null,3805]
[null,3805]
[null,3805]
[null,3805]
[null,3805]
[null,3805]
[null,3805]
[null,3805]
[null,3805]
[null,3805]
[null,3805]
[null,3805]
[null,3805]
[null,3805]
[null,3805]
[null,3805]
[null,3805]
[null,3805]
[null,3805]
[null,3805]
[null,3805]
[null,{"$f":"B322+E323-F323","v":3805}]
[null,3805]
[null,3805]
[null,3805]
[null,3805]
[null,3805]
[null,3805]
[null,3805]
[null,3805]
[null,3805]
[null,3805]
[null,3805]
[null,3805]
[null,3805]
[null,3805]
[null,3805]
[null,3805]
[null,3805]
[null,3805]
[null,3805]
[null,3805]
[null,3805]
[null,3805]
[null,3805]
[null,3805]
[null,3805]
[null,3805]
[null,3805]
[null,3805]
[null,3805]
[null,3805]
[null,3805]
[null,3805]
[null,3805]
[null,3805]
[null,3805]
[null,3805]
[null,3805]
[null,3805]
[null,3805]
[null,3805]
[null,3805]
[null,3805]
[null,3805]
[null,3805]
[null,3805]
[null,3805]
[null,3805]
[null,3805]
[null,3805]
[null,3805]
[null,3805]
[null,3805]
[null,3805]
[null,3805]
[null,3805]
[null,3805]
[null,3805]
[null,3805]
[null,3805]
[null,3805]
[null,3805]
[null,3805]
[null,3805]
[null,{"$f":"B386+E387-F387","v":3805}]
[null,3805]
[null,3805]
[null,3805]
[null,3805]
[null,3805]
[null,3805]
[null,3805]
[null,3805]
[null,3805]
[null,3805]
[null,3805]
[null,3805]
[null,3805]
[null,3805]
[null,3805]
[null,3805]
[null,3805]
[null,3805]
[null,3805]
[null,3805]
[null,3805]
[null,3805]
[null,3805]
[null,3805]
[null,3805]
[null,3805]
[null,3805]
[null,3805]
[null,3805]
[null,3805]
[null,3805]
[null,3805]
[null,3805]
[null,3805]
[null,3805]
[null,3805]
[null,3805]
[null,3805]
[null,3805]
[null,3805]
[null,3805]
[null,3805]
[null,3805]
[null,3805]